Workbook

Sheet Стр.1
BE1: УТВЕРЖДАЮ
BE2: Директор ГАПОУ МО "ПЭК"
BE3: (наименование должности лица, утверждающего документ)
BZ4: Д.В. Шевченко
BE5: (подпись) | BZ5: (расшифровка подписи)
BN6: " | BP6: 30 | BT6: " | BV6: декября | CK6: 20 | CN6: 19 | CR6: г.
A8: План финансово-хозяйственной деятельности
A9: на 2019 год (и плановый период 2020 и 2021 годов)
CO10: КОДЫ
CM11: Форма по ОКУД | CO11: 0503737
AM12: " | AN12: 30 | AR12: " | AU12: декабря | BJ12: 20 | BN12: 19 | BQ12: г. | CD12: Дата | CO12: 30.12.2019
Z14: Государственное автономное профессиональное образовательное учреждение Мурманской области "Полярнозоринский энергетический колледж"
A15: Наименование учреждения | CB15: по ОКПО | CO15: 02516481
CB16: ИНН | CO16: 5117100038
CB17: КПП | CO17: 511701001
CB18: по ОКАТО | CO18: 47719000
A19: Единица измерения: руб. | CB19: по ОКЕИ | CO19: 383
A20: Наименование органа, осуществляющего функции и полномочия учредителя | AO20: Министерство образования и науки Мурманской области | CB20: Глава по БК | CO20: 804
A22: Юридический адрес учреждения | AO22: 184230, Мурманская обл., г. Полярные Зори, ул. Курчатова, д. 24
A23: Адрес фактического местонахождения учреждения | AO23: 184230, Мурманская обл., г. Полярные Зори, ул. Курчатова, д. 24
A25: Код по реестру участников бюджетного процесса, а также юридических лиц, не являющихся участниками бюджетного процесса) | BY25: 4 | CC25: 7 | CG25: 2 | CK25: Ц | CO25: 8 | CS25: 1 | CW25: 9 | DA25: 1
A27: 1. Сведения о деятельности учреждения
A29: 1.1. Цели деятельности учреждения: | AI29: Подготовка кадров со средним профессиональным образованием в соответствии
A30: с потребностью экономики и социальной сферы Мурманской области
A31: 1.2. Виды деятельности учреждения: | AI31: Реализация в соответствии с ФГОС образовательных программ СПО (программа
A32: подготовки специалистов среднего звена, программ подготовки квалифицированных рабочих и служащих), в том числе интегрированных с образовательными программами среднего общего образования. Кроме государственного задания учреждение вправе выполнять работы, оказывать услуги, относящиеся к его основной деятельности, для граждан и юридических лиц за плату и на одинаковых при оказании однородных услуг условиях в порядке, установленном федеральными законами и законодательством Мурманской области. Образовательное учреждение вправе осуществлять следующие виды деятельности, не являющиеся основными (в том числе, приносящие доход): - реализация дополнительных профессиональных программ (программы повышения квалификации, программы профессиональной переподготовки); - реализация дополнительных общеобразовательных программ (дополнительные общеразвивающие программы технической, естественнонаучной, физкультурно-спортивной, художественной, туристско-краеведческой, социально-педагогической направленности); - реализация программ профессионального обучения (программ профессиональной подготовки по профессиям рабочих, должностям служащих; программ профессиональной переподготовки по профессиям рабочих, должностям служащих, программ повышения квалификации по профессиям рабочих, должностям служащих); - оказание иных видов образовательных услуг, в том числе организация и проведение обучающих семинаров и тренингов, консультационная деятельность по освоению современных образовательных технологий и методов; - организация и проведение воспитательных и развивающих мероприятий; - научно-исследовательская и научно-издательская деятельность; - управление недвижимым имуществом, сдача в аренду недвижимого имущества в порядке, определяемом законодательством Российской Федерации и Мурманской области; - рекламная деятельность; - деятельность в области фотографии; - полиграфическая деятельность; - издательская деятельность; - деятельность столовых и буфетов при предприятиях и учреждениях; - спортивная и физкультурно-оздоровительная деятельность; - выполнение копировально-множительных работ, тиражирования, брошюровочно - переплетной деятельности; - реализация сувенирной и иной произведенной Образовательным учреждением продукции; - организация и (или) проведение ярмарок, аукционов, выставок, выставок-продаж, симпозиумов, конференций, лекториев, благотворительных и иных аналогичных мероприятий, в том числе с участием иностранных юридических и физических лиц;
A33: - предоставление библиотечных услуг; - предоставление услуг проживания, пользования коммунальными и хозяйственными услугами в общежитии в порядке, определяемом локальными нормативными актами Образовательного учреждения; - организация и проведение стажировок и практик в Российской Федерации и за рубежом; - осуществление международного сотрудничества по направлениям, соответствующим профилю деятельности Образовательного учреждения и проведение международных мероприятий.
A34: 1.3. Перечень услуг (работ), осуществляемых, в том числе, на платной основе:
A35: 1.3.1. Реализация образовательных программ среднего профессионального образования - программ подготовки квалифицированных рабочих, служащих.
A36: 1.3.2. Реализация образовательных программ среднего профессионального образования - программ подготовки специалистов среднего звена.
A37: 1.3.3. Реализация основных профессиональных образовательных программ профессионального обучения - программ профессиональной подготовки по профессиям рабочих, должностям служащих (профессиональное обучение школьников).
A38: 1.3.4. Предоставление питания
A39: 1.3.5. Проживание в общежитии
A40: 1.3.6 Деятельность столовых и буфета при учреждении
A41: 1.3.7 Предоставление услуг проживания, пользования коммунальными и хозяйственными услугами в общежитии.

Sheet Стр.2-3
A1: 2. Финансовые параметры деятельности учреждения
A2: 2.1. Показатели финансового состояния учреждения
A3: на "01" января 2019г.
A6: Наименование показателя | BU6: Сумма, рублей
B7: I. Нефинансовые активы, всего: | BU7: 198,997,257.89
B8: из них:
B9: 1.1. Общая балансовая стоимость недвижимого государственного имущества, всего | BU9: 177,040,366.79
B10: в том числе:
B11: 1.1.1. Стоимость недвижимого имущества, закрепленного собственником имущества за государственным учреждением на праве оперативного управления | BU11: 177,040,366.79
B12: 1.1.2. Стоимость недвижимого имущества, приобретенного государственным учреждением (подразделением) за счет выделенных собственником имущества учреждения средств | BU12: 0.00
B13: 1.1.3. Стоимость недвижимого имущества, приобретенного государственным учреждением (подразделением) за счет доходов, полученных от платной и иной приносящей доход деятельности | BU13: 0.00
B14: 1.1.4. Стоимость недвижимого имущества, переданного в аренду, безвозмездное пользование | BU14: 0.00
B15: 1.1.5. Остаточная стоимость недвижимого государственного имущества | BU15: 120,895,916.82
B16: 1.2. Общая балансовая стоимость движимого государственного имущества, всего | BU16: 21,956,891.10
B17: в том числе:
B18: 1.2.1. Общая балансовая стоимость особо ценного движимого имущества | BU18: 9,649,210.15
B19: 1.2.2. Стоимость иного движимого имущества, приобретенного государственным учреждением за счет доходов, полученных за счет бюджетных средств | BU19: 10,318,024.41
B20: 1.2.3. Стоимость движимого имущества, приобретенного учреждением за счет доходов, полученных от платной и иной приносящей доход деятельности | BU20: 1,989,656.54
B21: 1.2.4. Стоимость движимого имущества, приобретенного учреждением за счет средств обязательного медицинского страхования | BU21: 0.00
B22: 1.2.5. Остаточная стоимость особо ценного движимого имущества | BU22: 2,537,249.11
B23: II. Финансовые активы, всего
B24: из них:
B25: 2.1. Денежные средства учреждения, всего | BU25: 211,425.36
B26: в том числе:
B27: 2.1.1. Денежные средства учреждения на счетах | BU27: 211,425.36
B28: 2.1.2. Денежные средства учреждения, размещенные на депозиты в кредитной организации | BU28: 0.00
B29: 2.2. Иные финансовые инструменты | BU29: 0.00
B30: 2.3. Дебиторская задолженность по доходам, полученным за счет средств областного бюджета, всего | BU30: 0.00
B31: 2.4. Дебиторская задолженность по расходам, всего | BU31: 121,390.72
B32: в том числе:
B33: 2.4.1. Дебиторская задолженность по выданным авансам, полученным за счет средств областного бюджета | BU33: 110,090.75
B34: 2.4.2. Дебиторская задолженность по выданным авансам за счет доходов, полученных от платной и иной приносящей доход деятельности | BU34: 11,299.97
B35: 2.4.3. Дебиторская задолженность по выданным авансам за счет средств обязательного медицинского страхования | BU35: 0.00
B36: III. Обязательства, всего | BU36: =BU39 -> 1,921,610.94
B37: из них:
B38: 3.1. Долговые обязательства | BU38: 0.00
B39: 3.2. Кредиторская задолженность: | BU39: 1,921,610.94
B40: в том числе:
B41: 3.2.1. Кредиторская задолженность по принятым обязательствам за счет средств областного бюджета, всего: | BU41: 1,885,249.38
B42: в том числе:
B43: по оплате труда | BU43: 0.00
B44: по начислениям на выплаты по оплате труда | BU44: 637,503.88
B45: по социальным и иным выплатам населению | BU45: 0.00
B46: по расходам на закупку товаров, работ, услуг | BU46: 556,986.50
B47: по уплате налогов, сборов и иных платежей | BU47: 690,759.00
B48: по прочим расходам | BU48: 0.00
B49: 3.2.2. Кредиторская задолженность по принятым обязательствам за счет доходов, полученных от платной и иной приносящей доход деятельности, всего: | BU49: 36,361.56
B50: в том числе:
B51: по оплате труда | BU51: 0.00
B52: по начислениям на выплаты по оплате труда | BU52: 34,073.56
B53: по социальным и иным выплатам населению | BU53: 0.00
B54: по расходам на закупку товаров, работ, услуг | BU54: 0.00
B55: по уплате налогов, сборов и иных платежей | BU55: 2,288.00
B56: по прочим расходам | BU56: 0.00
B57: 3.2.3. Кредиторская задолженность по принятым обязательствам за счет средств обязательного медицинского страхования, всего: | BU57: 0.00
B58: в том числе:
B59: по оплате труда | BU59: 0.00
B60: по начислениям на выплаты по оплате труда | BU60: 0.00
B61: по социальным и иным выплатам населению | BU61: 0.00
B62: по расходам на закупку товаров, работ, услуг | BU62: 0.00
B63: по уплате налогов, сборов и иных платежей | BU63: 0.00
B64: по прочим расходам | BU64: 0.00
B65: 3.2.4. Просроченная кредиторская задолженность, всего | BU65: 0.00
B66: в том числе:
B67: по оплате труда | BU67: 0.00
B68: по начислениям на выплаты по оплате труда | BU68: 0.00
B69: по социальным и иным выплатам населению | BU69: 0.00
B70: по расходам на закупку товаров, работ, услуг | BU70: 0.00
B71: по уплате налогов, сборов и иных платежей | BU71: 0.00
B72: по прочим расходам | BU72: 0.00

Sheet Стр.4-5
A1: 2.2. Показатели по поступлениям и выплатам учреждения*
A2: на "30" декабря 2019 г.
A4: Наименование показателя | B4: Код строки | C4: Код по бюджетной классификации РФ | E4: Объем финансового обеспечения, руб. (с точностью до двух знаков после запятой - 0,00)
E5: Всего | F5: в том числе:
F6: Субсидии на финансовое обеспечение выполнения государственного (муниципального) задания из федерального бюджета, бюджета субъекта Российской Федерации (местного бюджета) | G6: Субсидии на финансовое обеспечение выполнения государственного задания из бюджета Федерального фонда обязательного медицинского страхования | H6: Субсидии, предоставляемые в соответствии с абзацем вторым пункта 1 статьи 78.1 БК РФ | I6: Субсидии на осуществление капитальных вложений | J6: Средства обязательного медицинского страхования | K6: Поступления от оказания услуг (выполнения работ) на платной основе и от иной приносящей доход деятельности
K7: всего | L7: из них гранты
A8: 1 | B8: 2 | C8: 3 | D8: 4 | E8: 5 | F8: 6 | H8: 7 | I8: 8 | J8: 9 | K8: 10 | L8: 11
A9: Поступления от доходов, всего: | B9: 100 | C9: х | E9: =SUM(F9+H9+I9+J9+K9) -> 68,907,528.56 | F9: =SUM(F12) -> 53,404,000.00 | H9: =SUM(H21) -> 11,423,127.94 | K9: =K11+K14+K15+K16+K18+K19+K20+K23+K31+K32+K17 -> 4,080,400.62 | L9: =L23+L32 -> 112,000.00
A10: в том числе:
A11: Доходы от собственности | B11: 110 | C11: 0704 0000000000 120 | D11: 121 | E11: =K11 -> 363,390.00 | F11: х | H11: х | I11: х | J11: х | K11: 363,390.00 | L11: х
A12: Доходы от оказания услуг, работ | B12: 120 | D12: 131 | E12: =SUM(F12+K12) -> 53,404,000.00 | F12: =45415920+5000000+2988080 -> 53,404,000.00
A13: в том числе:
A14: Платная образовательная деятельность | B14: 1219 | C14: 0704 0000000000 130 | D14: 131 | E14: =SUM(F14+H14+I14+J14+K14+L14) -> 1,572,221.00 | K14: 1,572,221.00
A15: Спортивно-оздоровительные платные услуги | B15: 1220 | C15: 0704 0000000000 130 | D15: 131 | E15: 783,000.00 | K15: 783,000.00
A16: Деятельность столовых и буфета при учреждении | B16: 1221 | C16: 0704 0000000000 130 | D16: 131 | E16: 333,137.00 | K16: 333,137.00
A17: Доходы от компенсации затрат | B17: 1222 | C17: 0704 0000000000 130 | D17: 134 | E17: =K17 -> 600.00 | K17: 600.00
A18: Предоставление услуг проживания, пользования коммунальными и хозяйственными услугами в общежитии | B18: 1223 | C18: 0704 0000000000 130 | D18: 135 | E18: 966,987.62 | K18: 966,987.62
A19: Налог на прибыль | B19: 1224 | C19: 0704 0000000000 180 | D19: 189 | E19: -50,935.00 | K19: -50,935.00
A20: Доходы от штрафов, пеней, иных сумм принудительного изъятия | B20: 130 | E20: =K20 -> 0.00 | F20: х | H20: х | I20: х | J20: х | K20: 0.00 | L20: х
A21: Иные субсидии, предоставленные из бюджета | B21: 150 | D21: 180 | E21: =SUM(H21) -> 11,423,127.94 | F21: х | H21: =SUM(H23:H29) -> 11,423,127.94 | J21: х | K21: х | L21: х
A22: в том числе:
A23: Выплата стипндии Правительства Российской Федерации для лиц, обучающихся по очной форме обучения по основным профессиональным образовательным программам СПО по приоритетным направлениям модернизации и технологического развития экономики РФ | B23: 1501 | C23: 0704 0000000000 150 | D23: 152 | E23: =SUM(F23:K23) -> 112,000.00 | K23: =67200+44800 -> 112,000.00 | L23: 112,000.00
A24: Выплата стипендии обучающимся по очной форме обучения в учреждениях среднего профессионального образования | B24: 1502 | C24: 0704 0210113800 180 | D24: 152 | E24: =SUM(F24:L24) -> 3,200,400.00 | H24: =3170400+30000 -> 3,200,400.00
A25: Организация участия в отборочных соревнованиях Национального чемпионата «WorldSkills Россия» в компетенции «Сварочные технологии» | B25: 1503 | D25: 152 | E25: =H25 -> 124,562.46 | H25: =139739-15176.54 -> 124,562.46
A26: Обеспечние комплексной безопасности образования в образовательных организациях СПО | B26: 1504 | C26: 0704 0230200050 180 | D26: 152 | E26: =SUM(F26:L26) -> 3,246,745.00 | H26: =186600+188000+300000+1521232+229000+211313+330600+280000 -> 3,246,745.00
A27: Предоставление бесплатного питания отдельным категориям обучающихся организаций профессионального образования | B27: 1505 | C27: 0704 0230200050 180 | D27: 152 | E27: =SUM(F27:L27) -> 894,032.00 | H27: 894,032.00
A28: Оплата стоимости проезда и провоза багажа к месту использования отпуска (отдыха) и обратно | B28: 1506 | C28: 0704 0240213060 180 | D28: 152 | E28: 579,833.48 | H28: 579,833.48
A29: Содержание детей-сирот, детей, оставшихся без попечения родителей, лиц из их числа в государственных областных профессиональных организациях | C29: 0704 0330200050 180 | D29: 152 | E29: 3,377,555.00 | H29: 3,377,555.00
A30: Доходы от операций с активами | B30: 160 | C30: 0704 0000000000 410 | D30: 172 | E30: =K30 -> 0.00
A31: Прочие доходы | B31: 170 | C31: 0704 0000000000 180 | D31: 189 | E31: 0.00 | F31: х | H31: х | I31: х | J31: х
A32: Безвозмездные поступления от финансовых организаций | B32: 180 | C32: 0704 0000000000 180 | D32: 189 | E32: =K32 -> 0.00 | F32: х | H32: х | I32: х | J32: х
A33: Выплаты по расходам, всего: | B33: 200 | C33: х | E33: =SUM(F33+H33+K33) -> 69,110,953.92 | F33: =SUM(F35+F51+F57+F68+F74) -> 53,404,000.00 | H33: =SUM(H35+H51+H57+H68+H74) -> 11,423,127.94 | K33: =SUM(K35+K51+K57+K68+K74) -> 4,283,825.98
A34: в том числе на:
A35: Выплаты персоналу всего: | B35: 210 | D35: 210 | E35: =SUM(E37:E50) -> 41,580,683.05 | F35: =SUM(F37:F50) -> 39,336,144.89 | H35: =SUM(H36:H50) -> 624,214.71 | K35: =SUM(K36:K50) -> 1,620,323.45
A36: из них:
A37: Заработная плата | B37: 2101 | C37: 0704 0210100050 111 | D37: 211 | E37: =SUM(F37:L37) -> 29,775,301.18 | F37: =22166030+3000000+4609271.18 -> 29,775,301.18
A38: Заработная плата | B38: 2102 | C38: 0704 0000000000 111 | D38: 211 | E38: =SUM(F38:L38) -> 1,222,243.64 | K38: 1,222,243.64
A39: Заработная плата | C39: 0704 0210100050 111 | D39: 264 | E39: =F39 -> 125,104.28 | F39: 125,104.28
A40: Заработная плата | B40: 2101 | C40: 0704 0210100050 111 | D40: 266 | E40: =F40 -> 275,894.34 | F40: =276719.34-825 -> 275,894.34
A41: Иные выплаты персоналу (командир.расх.) | B41: 2103 | C41: 0704 0210100050 112 | D41: 212 | E41: =SUM(F41:L41) -> 16,400.00 | F41: 16,400.00
C42: 0704 0210100050 112 | D42: 226 | E42: =F42 -> 220,210.37 | F42: =186563.27+33647.1 -> 220,210.37
C43: 0704 0210100050 112 | D43: 266 | E43: =F43 -> 3,322.50 | F43: =2497.5+825 -> 3,322.50
A44: Иные выплаты персоналу | B44: 2104 | C44: 0709 0210300050 112 | D44: 214 | E44: =SUM(F44:L44) -> 44,381.23 | H44: 44,381.23
A45: Иные выплаты персоналу | B45: 2105 | C45: 0704 0000000000 112 | D45: 214 | E45: 579,833.48 | H45: 579,833.48
A46: Иные выплаты персоналу | B46: 2106 | C46: 0707 0210120110 112 | D46: 212 | E46: 0.00
C47: 0704 0000000000 112 | D47: 266 | E47: =SUM(F47:L47) -> 53,601.27 | K47: 53,601.27
A48: Начисления на выплаты по оплате труда | B48: 2107 | C48: 0704 0210100050 119 | D48: 213 | E48: =SUM(F48:L48) -> 8,919,912.22 | F48: 8,919,912.22
A49: Начисления на выплаты по оплате труда | B49: 2108 | C49: 0709 0240213060 119 | D49: 213 | E49: =H49 -> 0.00
A50: Начисления на выплаты по оплате труда | B50: 2109 | C50: 0704 0000000000 119 | D50: 213 | E50: 344,478.54 | K50: 344,478.54
A51: Социальные и иные выплаты населению, всего | B51: 220 | D51: 262 | E51: =SUM(E52:E56) -> 1,921,392.54 | F51: =SUM(F53) -> 0.00 | H51: =SUM(H53:H55) -> 1,915,392.54 | K51: =K56 -> 6,000.00
A52: из них:
A53: Пособия и компенсации гражданам | B53: 2201 | C53: 0704 0210100050 321 | D53: 262 | E53: =SUM(F53:L53) -> 0.00 | F53: 0.00
A54: Пособия и компенсации гражданам (дети-сироты) | B54: 2202 | C54: 0704 0330200050 321 | D54: 262 | E54: 1,820,869.54 | H54: 1,820,869.54
A55: Пособия и компенсации гражданам (ТЖС) | B55: 2203 | C55: 0704 0230200050 321 | D55: 262 | E55: 94,523.00 | H55: 94,523.00
C56: 0704 0000000000 321 | D56: 262 | E56: =K56 -> 6,000.00 | K56: 6,000.00
A57: Уплату налогов, сборов и иных платежей, всего | B57: 230 | D57: 290 | E57: =SUM(E58:E67) -> 2,927,877.69 | F57: =SUM(F59:F67) -> 2,909,451.47 | H57: =SUM(H59:H61) -> 0.00 | K57: =SUM(K58:K67) -> 18,426.22
A58: из них:
A59: Прочие расходы (налог на землю, имущество) | B59: 2301 | C59: 0704 0210100050 851 | D59: 291 | E59: =SUM(F59:L59) -> 2,622,785.00 | F59: 2,622,785.00
A60: Прочие расходы (налог на землю, имущество) | B60: 2302 | C60: 0704 0000000000 851 | D60: 291 | E60: 2,288.00 | K60: 2,288.00
A61: Прочие расходы (ГП) | B61: 2303 | C61: 0704 0210100050 852 | D61: 291 | E61: 286,661.00 | F61: 286,661.00
C62: 0704 0000000000 852 | D62: 291 | E62: =K62 -> 9,298.52 | K62: 9,298.52
A63: Прочие расходы (ПЕ, ШТ) | B63: 2304 | C63: 0704 0000000000 853 | D63: 292 | E63: 3,069.79 | K63: 3,069.79
A64: Прочие расходы (ПЕ, ШТ) | B64: 2305 | C64: 0704 0210100050 853 | D64: 293 | E64: =F64 -> 5.47 | F64: 5.47
A65: Прочие расходы (ПЕ, ШТ) | B65: 2306 | C65: 0704 0000000000 853 | D65: 293 | E65: =K65 -> 1,756.54 | K65: 1,756.54
D66: 295 | E66: =K66 -> 466.63 | K66: 466.63
A67: Прочие расходы (ПЕ, ШТ) | B67: 2307 | C67: 0704 0000000000 853 | D67: 296 | E67: =K67 -> 1,546.74 | K67: 1,546.74
A68: Прочие расходы (кроме расходов на закупку товаров, работ, услуг) | B68: 250 | C68: 0000 0000000000 000 | D68: 290 | E68: =SUM(E69:E73) -> 3,331,531.33 | F68: =SUM(F69:F73) -> 13,963.00 | H68: =SUM(H69:H73) -> 3,200,400.00 | K68: =SUM(K69:K73) -> 117,168.33
A69: Прочие расходы (обучающиеся) | B69: 2501 | C69: 0704 0210100050 113 | D69: 226 | E69: =SUM(F69:L69) -> 13,963.00 | F69: 13,963.00
A70: Прочие расходы (обучающиеся) | B70: 2502 | C70: 0704 0000000000 113 | D70: 226 | E70: 0.00
A71: Прочие расходы | B71: 2503 | C71: 0704 0000000000 340 | D71: 296 | E71: =SUM(F71:K71) -> 112,000.00 | K71: =67200+44800 -> 112,000.00
A72: Прочие расходы | B72: 2504 | C72: 0704 0000000000 340 | D72: 296 | E72: =H72+K72 -> 3,205,568.33 | H72: 3,200,400.00 | K72: 5,168.33
A73: Прочие расходы | B73: 2505 | C73: 0704 0000000000 350 | D73: 296 | E73: 0.00
A74: Расходы на закупку товаров, работ, услуг, всего | B74: 260 | D74: 220 | E74: =SUM(E75:E106) -> 19,349,469.31 | F74: =SUM(F76:F104) -> 11,144,440.64 | H74: =SUM(H76:H106) -> 5,683,120.69 | K74: =SUM(K75:K104) -> 2,521,907.98
A75: из них:
A76: Услуги связи | B76: 2601 | C76: 0704 0210100050 244 | D76: 221 | E76: =SUM(F76:L76) -> 131,410.58 | F76: 131,410.58
A77: Услуги связи | B77: 2602 | C77: 0704 0000000000 244 | D77: 221 | E77: 1,138.10 | K77: 1,138.10
A78: Транспортные услуги | B78: 2603 | C78: 0704 0210100050 244 | D78: 222 | E78: 29,620.00 | F78: 29,620.00
A79: Коммунальные услуги | B79: 2605 | C79: 0704 0210100050 244 | D79: 223 | E79: =F79 -> 7,172,484.78 | F79: 7,172,484.78
A80: Коммунальные услуги | B80: 2606 | C80: 0704 0000000000 244 | D80: 223 | E80: =K80 -> 440,730.63 | K80: 440,730.63
A81: Работы, услуги по содержанию имущества | B81: 2607 | C81: 0704 0210100050 244 | D81: 225 | E81: 681,241.67 | F81: 681,241.67
A82: Работы, услуги по содержанию имущества | B82: 2608 | C82: 0709 0230200050 244 | D82: 225 | E82: 2,363,145.00 | H82: =300000+1521232+211313+330600 -> 2,363,145.00
A83: Работы, услуги по содержанию имущества | B83: 2609 | C83: 0704 0000000000 244 | D83: 225 | E83: =SUM(F83:K83) -> 453,116.50 | K83: 453,116.50
A84: Прочие работы, услуги | B84: 2610 | C84: 0704 0210100050 244 | D84: 226 | E84: 1,472,849.08 | F84: 1,472,849.08
A85: Прочие работы, услуги | B85: 2611 | C85: 0709 0210300050 244 | D85: 226 | E85: =H85 -> 80,181.23 | H85: =95357.77-15176.54 -> 80,181.23
A86: Прочие работы, услуги | B86: 2612 | C86: 0709 0230200050 244 | D86: 226 | E86: =H86 -> 883,600.00 | H86: =186600+188000+229000+280000 -> 883,600.00
A87: Прочие работы, услуги | B87: 2613 | C87: 0704 0000000000 244 | D87: 226 | E87: =SUM(F87:K87) -> 1,114,543.81 | K87: 1,114,543.81
C88: 0704 0210100050 244 | D88: 227 | E88: =F88 -> 8,385.00 | F88: 8,385.00
A89: Прочие расходы | B89: 2614 | C89: 0704 0000000000 244 | D89: 296 | E89: 0.00
A90: Увеличение стоимости основных средств | B90: 2615 | C90: 0704 0210100050 244 | D90: 310 | E90: 538,311.42 | F90: 538,311.42
A91: Увеличение стоимости основных средств | B91: 2616 | C91: 0704 0000000000 244 | D91: 310 | E91: =SUM(F91:K91) -> 221,674.00 | K91: 221,674.00
A92: Увеличение стоимости материальных запасов | B92: 2617 | C92: 0704 0210100050 244 | D92: 341 | E92: =SUM(F92:L92) -> 10,321.08 | F92: 10,321.08
D93: 342 | E93: =K93 -> 217,349.20 | K93: 217,349.20
D94: 342 | E94: =F94 -> 12,201.49 | F94: 12,201.49
D95: 343 | E95: =F95 -> 188,185.15 | F95: 188,185.15
D96: 344 | E96: =F96 -> 82,481.39 | F96: 82,481.39
D97: 344 | E97: =K97 -> 20,099.62 | K97: 20,099.62
D98: 345 | E98: =F98 -> 87,540.06 | F98: 87,540.06
D99: 346 | E99: =F99 -> 662,758.94 | F99: 662,758.94
D100: 346 | E100: =K100 -> 33,406.12 | K100: 33,406.12
D101: 349 | E101: =F101 -> 66,650.00 | F101: 66,650.00
D102: 349 | E102: =K102 -> 19,850.00 | K102: 19,850.00
A103: Увеличение стоимости материальных запасов (ТЖС) | B103: 2619 | C103: 0704 0230200050 323 | D103: 342 | E103: 799,509.00 | H103: 799,509.00
A104: Увеличение стоимости материальных запасов (дети-сироты) | B104: 2620 | C104: 0704 0330200050 323 | D104: 342 | E104: 455,453.04 | H104: 455,453.04
D105: 345 | E105: =H105 -> 950,780.00 | H105: 950,780.00
D106: 346 | E106: =H106 -> 150,452.42 | H106: 150,452.42
A107: Поступления финансовых активов, всего: | B107: 300 | C107: х | E107: =SUM(F107:L107) -> 26,350.00 | F107: =SUM(F109:F110) -> 0.00 | K107: =SUM(K109) -> 26,350.00
A108: из них:
A109: Увеличение остатков средств | B109: 510 | C109: 000 0000 0000000000 000 | E109: =SUM(F109:L109) -> 26,350.00 | K109: 26,350.00
A110: Прочие поступления | B110: 320
A111: Выбытие финансовых активов, всего | B111: 400 | E111: =SUM(F111:L111) -> 34,350.00 | K111: =SUM(K113) -> 34,350.00
A112: из них:
A113: Уменьшение остатков средств | B113: 610 | C113: 000 0000 0000000000 000 | E113: =SUM(F113:L113) -> 34,350.00 | K113: 34,350.00
A114: Прочие выбытия | B114: 420
A115: Остаток средств на начало года | B115: 500 | C115: х | E115: =SUM(F115:L115) -> 211,425.36 | F115: 0.00 | H115: 0.00 | K115: 211,425.36
A116: Остаток средств на конец года | B116: 600 | C116: х | E116: =SUM(F116:L116) -> 0.00 | F116: =SUM(F115+F9-F33) -> 0.00 | H116: =H115+H9-H33 -> 0.00 | K116: =E115+K9-K33+K107-K111 -> 0.00
A118: * Заполняется в порядке, установленном приказом Минфина России от 28.07.2010 № 81н "О требованиях к плану финансово-хозяйственной деятельности государственного (муниципального) учреждения" ( в редакции приказа от 24.09.2015 №140н)

Sheet Стр.6
A1: 2.2.1. Показатели выплат по расходам на закупку товаров, работ, услуг учреждения*
A2: на "01" января 2019 г.
A4: Наименование показателя | B4: Код строки | C4: Год начала закупки | D4: Сумма выплат по расходам на закупку товаров, работ и услуг, руб. (с точностью до двух знаков после запятой - 0,00
D5: Всего на закупки | G5: в том числе:
G6: в соответствии с Федеральным законом от 5 апреля 2013 г. № 44-ФЗ "О контрактной системе в сфере закупок товаров, работ, услуг для обеспечения государственных и муниципальных нужд" | J6: в соответствии с Федеральным законом от 18 июля 2011 г. № 223-ФЗ "О закупках товаров, работ, услуг отдельными видами юридических лиц"
D7: за 2018 г. очередной финансовый год | E7: за 2019 г. 1-ый год планового периода | F7: за 2020 г. 2-ой год планового периода | G7: на 2018г. очередной финансовый год | H7: на 2019г. 1-ый год планового периода | I7: на 2020г. 2-ой год планового периода | J7: на 2018г. очередной финансовый год | K7: на 2019г. 1-ый год планового периода | L7: на 2020г. 2-ой год планового периода
A8: 1 | B8: 2 | C8: 3 | D8: 4 | E8: 5 | F8: 6 | G8: 7 | H8: 8 | I8: 9 | J8: 10 | K8: 11 | L8: 12
A9: Выплаты по расходам на закупку товаров, работ, услуг всего: | B9: 0001 | C9: х | D9: =D13 -> 16,950,326.62 | E9: =E13 -> 19,349,469.31 | F9: =F11+F13 -> 18,248,236.89 | G9: 0.00 | H9: 0.00 | I9: 0.00 | J9: 0.00 | K9: =K13 -> 19,349,469.31 | L9: =L11+L13 -> 18,248,236.89
A10: в том числе:
A11: на оплату контрактов заключенных до начала очередного финансового года: | B11: 1001 | C11: х | D11: 0.00 | E11: 0.00 | F11: 1,418,701.96 | G11: 0.00 | H11: 0.00 | I11: 0.00 | J11: 0.00 | K11: 0.00 | L11: 1,418,701.96
A13: на закупку товаров работ, услуг по году начала закупки: | B13: 2001 | D13: 16,950,326.62 | E13: 19,349,469.31 | F13: 16,829,534.93 | G13: 0.00 | H13: 0.00 | I13: 0.00 | J13: 16,950,326.62 | K13: 19,349,469.31 | L13: 16,829,534.93
A15: * Заполняется в соответствии с приказом Минфина России от 28.07.2010 № 81н "О требованиях к плану финансово-хозяйственной деятельности государственного (муниципального) учреждения" (в редакции приказа от от 29.08.2016 № 142н)

Sheet Стр 7
A1: 2.3. Сведения о средствах, поступающих во временное распоряжение учреждения*
A2: на "31" декабря 2018 г.
A3: (очередной финансовый год)
A5: Наименование показателя | B5: Код строки | C5: Сумма (руб., с точностью до двух знаков после запятой - 0,00)
A6: 1 | B6: 2 | C6: 3
A7: Остаток средств на начало года | B7: 010 | C7: 0.00
A8: Остаток средств на конец года | B8: 020 | C8: 0.00
A9: Поступление | B9: 030 | C9: 0.00
A11: Выбытие | B11: 040 | C11: 0.00
A15: 2.4. Справочная информация
A17: Наименование показателя | B17: Код строки | C17: Сумма, рублей
A18: 1 | B18: 2 | C18: 3
A19: Объем публичных обязательств, всего: | B19: 010 | C19: 0.00
A20: Объем бюджетных инвестиций (в части переданных полномочий государственного (муниципального) заказчика в соответствии с Бюджетным кодексом Российской Федерации), всего: | B20: 020 | C20: 0.00
A21: Объем средств, поступивших во временное распоряжение, всего: | B21: 030 | C21: 0.00
A22: * Заполняется в соответствии с приказом Минфина России от 28.07.2010 № 81н "О требованиях к плану финансово-хозяйственной деятельности государственного (муниципального) учреждения" (в редакции приказа от 29.08.2015 № 142н)

Sheet стр 8-10
A1: 3. Сведения и показатели об использовании ресурсов учреждения
A2: на "31" деабря 2018 г.
A4: Наименование показателя | B4: Единицы измерения | C4: за 2017 г. отчетный финансовый год | D4: на 2018 г. текущий финансовый год | E4: на 2019 г. очередной финансовый год | F4: на 2020 г. 1-ой год планового периода
A5: 1 | B5: 2 | C5: 3 | D5: 4 | E5: 5 | F5: 6
A6: 1. Сведения об уровне оплаты труда работников учреждения | B6: х | C6: х | D6: х | E6: х | F6: х
A7: 1.1. Фонд оплаты труда, всего | B7: тыс. руб. | C7: 24,655 | D7: =D10+D12+D14 -> 25,777 | E7: =E10+E12+E14 -> 26,935 | F7: =F10+F12+F14 -> 28,163
A8: из них: выплаты стимулирующего характера | B8: тыс. руб. | C8: 6321.7 | D8: 6574.6 | E8: 6837.6 | F8: 7111.1
A9: в том числе:
A10: 1.1.1.Фонд оплаты труда руководителей учреждения и их заместителей | B10: тыс. руб. | C10: 3105.8 | D10: 3230 | E10: 3359.2 | F10: 3493.6
A11: из них: выплаты стимулирующего характера | B11: тыс. руб. | C11: 693.6 | D11: 721.3 | E11: 750.2 | F11: 780.2
A12: 1.1.2. Фонд оплаты труда прочих работников учреждения | B12: тыс. руб. | C12: 10303.1 | D12: 10715.2 | E12: 11143.8 | F12: 11589.6
A13: из них: выплаты стимулирующего характера | B13: тыс. руб. | C13: 2700.1 | D13: 2808.1 | E13: 2920.4 | F13: 3037
A14: 1.2. Фонд оплаты труда, отдельных категорий работников бюджетной сферы, повышение оплаты труда которых предусмотрено указами Президента РФ, всего | B14: тыс. руб. | C14: 11246.2 | D14: 11832 | E14: 12432 | F14: 13080
A15: в том числе по категориям работников:
B16: тыс. руб.
A17: 1.3. Среднесписочная численность работников учреждения | B17: чел. | C17: 56 | D17: 56 | E17: 56 | F17: 56
A18: в том числе:
A19: 1.3.1. Среднесписочная численность руководителей учреждения и их заместителей | B19: чел. | C19: 3 | D19: 3 | E19: 3 | F19: 3
A20: 1.3.2. Среднесписочная численность прочих работников учреждения | B20: чел. | C20: 33 | D20: 33 | E20: 36 | F20: 36
A21: 1.4. Среднесписочная численность работников учреждения с которыми заключены эффективные контракты | B21: чел. | C21: 56 | D21: 56 | E21: 58 | F21: 58
A22: в том числе:
A23: 1.4.1. Среднесписочная численность руководителей учреждения и их заместителей с которыми заключены эффективные контракты | B23: чел. | C23: 3 | D23: 3 | E23: 3 | F23: 3
A24: 1.4.2. Среднесписочная численность прочих работников учреждения с которыми заключены эффективные контракты | B24: чел. | C24: 33 | D24: 33 | E24: 33 | F24: 33
A25: 1.5. Среднесписочная численность, отдельных категорий работников бюджетной сферы, повышение оплаты труда которых предусмотрено указами Президента РФ, всего | B25: чел. | C25: 20 | D25: 20 | E25: 20 | F25: 20
A26: в том числе по категориям работников:
A27: 1.6. Средняя заработная плата, необходимая для реализации указов Президента РФ, предусматривающих повышение оплаты труда отдельных категорий работников бюджетной сферы | B27: руб. | C27: 46600 | D27: 49300 | E27: 51800 | F27: 54500
A28: 1.7. Средняя заработная плата, сложившаяся/прогнозируемая в отчетном периоде | B28: руб. | C28: х | D28: х | E28: х | F28: х
A29: в том числе по категориям работников, повышение оплаты труда которых предусмотрено указами Президента РФ: | B29: руб. | C29: 46600 | D29: 49300 | E29: 51800 | F29: 54500
A30: 1.8. Отношение средней заработной платы руководителей учреждения и их заместителей к средней заработной плате работников учреждения | B30: % | C30: 269 | D30: 269 | E30: 269 | F30: 269
A31: 1.9. Отношение средней заработной платы, сложившейся/прогнозируемой в отчетном периоде к средней заработной плате, необходимой для реализации указов Президента РФ | B31: % | C31: х | D31: х | E31: х | F31: х
A32: в том числе по категориям работников, повышение оплаты труда которых предусмотрено указами Президента РФ: | C32: 100 | D32: 100 | E32: 100 | F32: 100
B33: %
A34: 2. Сведения об использовании имущества учреждения | B34: х | C34: х | D34: х | E34: х | F34: х
A35: 2.1. Общая площадь объектов недвижимого имущества, закрепленная за учреждением | B35: м² | C35: 10533.7 | D35: 10527.9 | E35: 10527.9 | F35: 10527.9
A36: в том числе:
A37: 2.1.1. Площадь недвижимого имущества в безвозмездном пользовании, всего | B37: м²
A38: 2.1.2.Площадь недвижимого имущества в безвозмездном пользовании, не используемая для выполнения государственного задания | B38: м²
A39: 2.1.3. Площадь недвижимого имущества, переданная в аренду | B39: м² | C39: 0 | D39: =36.1+67.2 -> 103.3 | E39: 103.3 | F39: 103.3
A40: 2.2. Затраты на содержание имущества учреждения | B40: тыс. руб.
A41: в том числе:
A42: 2.2.1. Затраты на содержание имущества учреждения, не используемого для выполнения государственного задания | B42: тыс. руб.
A43: 2.3. Коэффициент износа основных средств (отношение величины износа основных средств на конец отчетного периода к стоимости основных средств учреждения на конец отчетного периода) | B43: ед.
A44: 2.4. Коэффициент обновления основных средств (отношение стоимости основных средств поступивших за отчетный период к общей стоимости основных средств учреждения на конец отчетного периода) | B44: ед.
A45: 2.5. Коэффициенты ремонта зданий, характеризующие величину фактических расходов на капитальный ремонт зданий, приходящуюся на один рубль балансовой стоимости основных средств (в том числе за счет бюджетных средств) | B45: ед.
A46: в том числе:
B47: ед.
A48: 3. Показатели характеризующие объем и качество оказываемой услуги | C48: 13 | D48: 13 | E48: 13 | F48: 13
A49: 3.1. Общее количество государственных услуг, оказываемых учреждением | B49: ед.
A50: в том числе:
A51: 3.1.1. Количество государственных услуг, в отношении которых нормативно установлены требования к качеству их оказания | B51: ед. | C51: 13 | D51: 13 | E51: 13 | F51: 13
A52: 4. Показатели открытости и прозрачности деятельности
A53: 4.1. Обеспечено размещение (актуализация) сведений об учреждении на официальном сайте в сети Интернет www.bus.gov.ru | B53: да-1/нет-0 | C53: 1 | D53: 1 | E53: 1 | F53: 1
A54: 4.2. Обеспечено размещение в сети Интернет информации о результатах деятельности учреждения за отчетный год | B54: да-1/нет-0 | C54: 1 | D54: 1 | E54: 1 | F54: 1

Sheet стр.11
A1: 4. Перечень мероприятий по повышению эффективности деятельности учреждения
A2: на " " 20 г.
A4: Наименование мероприятия | B4: Сроки проведения | C4: Ожидаемый результат реализации | E4: Затраты, необходимые на проведение мероприятия, тыс. руб
A5: 1. Повышение эффективности управления и кадрового потенциала учреждения
A7: 2. Повышение эффективности управления государственной собственностью
A9: 3. Повышение качества предоставления государственных услуг
A11: 4. Направления оптимизации расходов учреждения
A13: Итого: | B13: х | C13: х
A16: Руководитель учреждения | E16: Д.В. Шевченко
C17: (подпись) | E17: (расшифровка подписи)
A18: Руководитель финансово-экономической | E18: О.А. Манаенкова
A19: службы учреждения | C19: (подпись) | E19: (расшифровка подписи)
A20: тел. (81532) 74763
A21: на "01" января 2019 г.

Sheet стр 12
DR2: УТВЕРЖДАЮ
DR3: Заместитель министра образования и науки Мурманской области
DR4: (должность лица, утверждающего документ; наименование органа,
DR5: Министерство образования и науки Мурманской области
DR6: осуществляющего функции и полномочия учредителя (учреждения)
FH7: Е.И. Панькова
DR8: (подпись) | FH8: (расшифровка подписи)
DR10: " | DT10: 28 | DX10: " | DZ10: июня | EN10: 20 | ER10: 19 | EU10: г.
HC11: КОДЫ
BL12: СВЕДЕНИЯ | GJ12: Форма по ОКУД | HC12: 0501016
BL13: ОБ ОПЕРАЦИЯХ С ЦЕЛЕВЫМИ СУБСИДИЯМИ НА 20 | DQ13: 19 | DT13: Г.
BY15: от " | CD15: 28 | CH15: " | CJ15: июня | CZ15: 20 | DD15: 19 | DG15: г. | HA15: Дата | HC15: 28.06.2019
HA16: Дата представления | HC16: 13.05.2019
HA17: предыдущих сведений
HA18: по Сводному Реестру | HC18: 472Ц8191
HA19: Номер лицевого счета | HC19: 31496Ц81910
HA20: ИНН | HC20: 5117100038
A21: Наименование учреждения | BD21: Государственное автономное профессиональное образовательное учреждение Мурманской области "Полярнозоринский энергетичекий колледж" | HA21: КПП | HC21: 511701001
HA22: по Сводному Реестру
HA23: Номер лицевого счета
A24: Наименование обособленного подразделения | HA24: КПП
A25: Наименование органа, осуществляющего функции и полномочия учредителя | BD25: Министерство образования и науки Мурманской области | HA25: Глава по БК | HC25: 804
HA26: Номер лицевого счета | HC26: 03492000210
A27: Наименование территориального органа Федерального казначейства, осуществляющего ведение лицевого счета | BD27: Управление Федерального казначейства по Мурманской области | HA27: по КОФК | HC27: 4900
A28: Единица измерения: руб. | HA28: по ОКЕИ | HC28: 383
A30: Целевые субсидии | BN30: Соглашение | CN30: Идентификатор соглашения | DH30: Код объекта ФАИП | DR30: Аналитический код поступлений/ выплат | EH30: Разрешенный к использованию остаток целевых субсидий | EX30: Сумма возврата дебиторской задолженности прошлых лет, разрешенная к использованию | FT30: Планируемые поступления текущего года | GJ30: Итого к использованию (гр. 8 + гр. 9 + гр. 10) | HC30: Планируемые выплаты
A31: наименование | BD31: код субсидии
BN32: номер | BZ32: дата
A33: 1 | BD33: 2 | BN33: 3 | BZ33: 4 | CN33: 5 | DH33: 6 | DR33: 7 | EH33: 8 | EX33: 9 | FT33: 10 | GJ33: 11 | HC33: 12
A35: Выплата стипендии обучающимся по очной форме обучения в учреждениях среднего профессионального образования | BD35: 0210100023 | BN35: 46 | BZ35: 22.01.2019 | DR35: 180 | FT35: 3,170,400.00 | GJ35: =HC36 -> 3,170,400.00
A36: Выплата стипендии обучающимся по очной форме обучения в учреждениях среднего профессионального образования | BD36: 0210100023 | BN36: 46 | BZ36: 22.01.2019 | DR36: 340 | HC36: 3,170,400.00
A37: Итого по коду целевой субсидии | BD37: 0210100023 | BN37: 46 | BZ37: 22.01.2019 | FT37: =FT35 -> 3,170,400.00 | GJ37: =GJ35 -> 3,170,400.00 | HC37: =HC36 -> 3,170,400.00
A38: Организация участия в отборочных соревнованиях Национального чемпионата «WorldSkills Россия» в компетенции «Сварочные технологии» | BD38: 0210300001 | BN38: 46 | BZ38: 22.01.2019 | DR38: 180 | FT38: 139,739.00 | GJ38: =HC39+HC40 -> 139,739.00
A39: Организация участия в отборочных соревнованиях Национального чемпионата «WorldSkills Россия» в компетенции «Сварочные технологии» | BD39: 0210300001 | BN39: 46 | BZ39: 22.01.2019 | DR39: 112 | HC39: 44,381.23
A40: Организация участия в отборочных соревнованиях Национального чемпионата «WorldSkills Россия» в компетенции «Сварочные технологии» | BD40: 0210300001 | BN40: 46 | BZ40: 22.01.2019 | DR40: 244 | HC40: 95,357.77
A41: Итого по коду целевой субсидии | BD41: 0210300001 | BN41: 46 | BZ41: 22.01.2019 | FT41: =FT38 -> 139,739.00 | GJ41: =GJ38 -> 139,739.00 | HC41: =HC39+HC40 -> 139,739.00
A42: Обеспечение комплексной безопасности | BD42: 0230200014 | BN42: 46 | BZ42: 22.01.2019 | DR42: 180 | FT42: 3,145,862.00 | GJ42: =HC43 -> 3,145,862.00
A43: Обеспечение комплексной безопасности | BD43: 0230200014 | BN43: 46 | BZ43: 22.01.2019 | DR43: 244 | HC43: 3,145,862.00
A44: Итого по коду целевой субсидии | BD44: 0230200014 | BN44: 46 | BZ44: 22.01.2019 | FT44: =FT42 -> 3,145,862.00 | GJ44: =GJ42 -> 3,145,862.00 | HC44: =HC43 -> 3,145,862.00
A45: Предоставление бесплатного питания отдельным категориям обучающихся учреждений среднего профессионального образования | BD45: 0230200024 | BN45: 46 | BZ45: 22.01.2019 | DR45: 180 | FT45: 994,032.00 | GJ45: =HC46+HC47 -> 994,032.00
A46: Предоставление бесплатного питания отдельным категориям обучающихся учреждений среднего профессионального образования | BD46: 0230200024 | BN46: 46 | BZ46: 22.01.2019 | DR46: 321 | HC46: 180,000.00
A47: Предоставление бесплатного питания отдельным категориям обучающихся учреждений среднего профессионального образования | BD47: 0230200024 | BN47: 46 | BZ47: 22.01.2019 | DR47: 323 | HC47: 814,032.00
A48: Итого по коду целевой субсидии | BD48: 0230200024 | BN48: 46 | BZ48: 22.01.2019 | FT48: =FT45 -> 994,032.00 | GJ48: =GJ45 -> 994,032.00 | HC48: =HC46+HC47 -> 994,032.00
A49: Оплата стоимости проезда и провоза багажа к месту использования отпуска (отдыха) и обратно | BD49: 0240200016 | BN49: 46 | BZ49: 22.01.2019 | DR49: 180 | FT49: 528,036.00 | GJ49: =HC50+HC51 -> 528,036.00
A50: Оплата стоимости проезда и провоза багажа к месту использования отпуска (отдыха) и обратно | BD50: 0240200016 | BN50: 46 | BZ50: 22.01.2019 | DR50: 112 | HC50: 528,036.00
A51: Оплата стоимости проезда и провоза багажа к месту использования отпуска (отдыха) и обратно | BD51: 0240200016 | BN51: 46 | BZ51: 22.01.2019 | DR51: 119 | HC51: 0.00
A52: Итого по коду целевой субсидии | BD52: 0240200016 | BN52: 46 | BZ52: 22.01.2019 | FT52: =FT49 -> 528,036.00 | GJ52: =GJ49 -> 528,036.00 | HC52: =HC50+HC51 -> 528,036.00
A53: Содержание детей-сирот, детей, оставшихся без попечения родителей, лиц из их числа в государственных областных образовательных учреждениях профессионального образования | BD53: 0330200010 | BN53: 46 | BZ53: 22.01.2019 | DR53: 180 | FT53: 3,377,555.00 | GJ53: =HC54+HC55 -> 3,377,555.00
A54: Содержание детей-сирот, детей, оставшихся без попечения родителей, лиц из их числа в государственных областных образовательных учреждениях профессионального образования | BD54: 0330200010 | BN54: 46 | BZ54: 22.01.2019 | DR54: 321 | HC54: 2,077,555.00
A55: Содержание детей-сирот, детей, оставшихся без попечения родителей, лиц из их числа в государственных областных образовательных учреждениях профессионального образования | BD55: 0330200010 | BN55: 46 | BZ55: 22.01.2019 | DR55: 323 | HC55: 1,300,000.00
A56: Итого по коду целевой субсидии | BD56: 0330200010 | BN56: 46 | BZ56: 22.01.2019 | FT56: =FT53 -> 3,377,555.00 | GJ56: =GJ53 -> 3,377,555.00 | HC56: =HC54+HC55 -> 3,377,555.00
A58: Всего | FT58: =FT37+FT48+FT56+FT52+FT41+FT44 -> 11,355,624.00 | GJ58: =GJ37+GJ48+GJ56+GJ52+GJ41+GJ44 -> 11,355,624.00 | HC58: =HC37+HC48+HC56+HC52+HC41+HC44 -> 11,355,624.00
A60: Руководитель (уполномоченное лицо) | AH60: И.о. директора | BS60: Д.В. Шевченко | HA60: Номер страницы | HC60: 2
AH61: (должность) | BD61: (подпись) | BS61: (расшифровка подписи) | HA61: Всего страниц | HC61: 2
A63: Руководитель финансово-экономической службы | BS63: О.А. Манаенкова
A64: (уполномоченное лицо) | BD64: (подпись) | BS64: (расшифровка подписи)
A66: Ответственный исполнитель | AG66: Главный бухгалтер | BC66: Манаенкова О.А. | BZ66: (81532) 74763
AG67: (должность) | BC67: (фамилия, инициалы) | BZ67: (телефон)
A69: " | C69: 28 | G69: " | I69: июня | Y69: 20 | AC69: 19 | AF69: г.
EB70: ОТМЕТКА ТЕРРИТОРИАЛЬНОГО ОРГАНА ФЕДЕРАЛЬНОГО КАЗНАЧЕЙСТВА О ПРИНЯТИИ НАСТОЯЩИХ СВЕДЕНИЙ
EB73: Ответственный исполнитель
FA74: (должность) | FW74: (подпись) | GL74: (расшифровка подписи)
EB76: " | EH76: " | EZ76: 20 | FG76: г.

Sheet 13
A1: Расчеты (обоснования) к плану финансово-хозяйственной деятельности государственного (муниципального) учреждения*
A3: 1. Расчеты (обоснования) выплат персоналу (строка 210)
A5: Код видов расходов | X5: 111
A7: Источник финансового обеспечения | AP7: 4 - субсидия на финансовое обеспечение выполнения гос. задания
A9: 1.1. Расчеты (обоснования) расходов на оплату труда
A11: № п/п | G11: Должность, группа должностей | Y11: Установленная численность, единиц | AO11: Среднемесячный размер оплаты труда на одного работника, руб. | DI11: Ежемесячная надбавка к должностному окладу, % | DY11: Районный коэффициент | EO11: Фонд оплаты труда в год, руб. (гр. 3 x гр. 4 x (1 + гр. 8 / 100) x гр. 9 x 12)
AO12: всего | BF12: в том числе:
BF13: по должностному окладу | BX13: по выплатам компенсационного характера | CQ13: по выплатам стимулирующего характера
A14: 1 | G14: 2 | Y14: 3 | AO14: 4 | BF14: 5 | BX14: 6 | CQ14: 7 | DI14: 8 | DY14: 9 | EO14: 10
A15: 1 | G15: Директор | Y15: 0.62 | AO15: 77,035.48 | BF15: 23,774.00 | BX15: =AO15-BF15-CQ15 -> 44,743.33 | CQ15: 8,518.15 | DI15: =CQ15*100/BF15 -> 36 | DY15: 9,146.49 | EO15: 573,143.97
A16: 2 | G16: Зам. директора по ТО | Y16: 1 | AO16: 77,775.24 | BF16: 18,227.00 | BX16: =AO16-BF16-CQ16 -> 51,819.63 | CQ16: 7,728.61 | DI16: =CQ16*100/BF16 -> 42 | DY16: 12,718.45 | EO16: =Y16*AO16*12 -> 933,302.88
A17: 3 | G17: Зам. директора по УПР | Y17: 1 | AO17: 78,719.83 | BF17: 18,227.00 | BX17: 52,000.15 | CQ17: 8,492.68 | DI17: 47 | DY17: =(BF17+CQ17)*0.5 -> 13,359.84 | EO17: =Y17*AO17*12 -> 944,637.96
A18: 4 | G18: Главный бухгалтер | Y18: 1 | AO18: 61,180.60 | BF18: 18,227.00 | BX18: 35,406.83 | CQ18: 7,546.77 | DI18: 41 | DY18: 12,886.89 | EO18: 734,167.20
Y19: =SUM(Y15:AN18) -> 3.62 | AO19: =SUM(AO15:BE18) -> 294,711.15 | BF19: =SUM(BF15:BW18) -> 78,455.00 | BX19: =SUM(BX15:CP18) -> 183,969.94 | CQ19: =SUM(CQ15:DH18) -> 32,286.21 | DY19: =SUM(DY15:EN18) -> 48,111.67 | EO19: =SUM(EO15:FE18) -> 3,185,252.01
A20: 5 | G20: Преподаватель | Y20: 16.2 | AO20: 49,775.78 | BF20: 8,917.89 | BX20: 35,274.35 | CQ20: 5,583.51 | DI20: =CQ20*100/BF20 -> 63 | DY20: 7,614.89 | EO20: =Y20*AO20*12+0.18 -> 9,676,411.81
Y21: =SUM(Y20:AN20) -> 16.2 | AO21: =SUM(AO20:BE20) -> 49,775.78 | BF21: =SUM(BF20:BW20) -> 8,917.89 | BX21: =SUM(BX20:CP20) -> 35,274.35 | CQ21: =SUM(CQ20:DH20) -> 5,583.51 | DY21: =SUM(DY20:EN20) -> 7,614.89 | EO21: =EO20 -> 9,676,411.81
A22: 6 | G22: Мастер производственного обучения | Y22: 4 | AO22: 40,646.64 | BF22: 5,396.68 | BX22: 30,808.05 | CQ22: 4,441.91 | DI22: =CQ22*100/BF22 -> 82 | DY22: 5,796.25 | EO22: =Y22*AO22*12+0.13 -> 1,951,038.85
Y23: =SUM(Y22:AN22) -> 4 | AO23: =SUM(AO22:BE22) -> 40,646.64 | BF23: =SUM(BF22:BW22) -> 5,396.68 | BX23: =SUM(BX22:CP22) -> 30,808.05 | CQ23: =SUM(CQ22:DH22) -> 4,441.91 | DY23: =SUM(DY22:EN22) -> 5,796.25 | EO23: =SUM(EO22:FE22) -> 1,951,038.85
A24: 7 | G24: Заведующий УО | Y24: 1 | AO24: 36,839.88 | BF24: 8,715.33 | BX24: =AO24-BF24-CQ24 -> 21,794.03 | CQ24: 6,330.52 | DI24: =CQ24*100/BF24 -> 73 | DY24: 8,964.42 | EO24: =Y24*AO24*12 -> 442,078.56
A25: 8 | G25: Заведующий УВО | Y25: 1 | AO25: 44,257.10 | BF25: 8,715.33 | BX25: =AO25-BF25-CQ25 -> 29,295.31 | CQ25: 6,246.46 | DI25: =CQ25*100/BF25 -> 72 | DY25: 7,098.03 | EO25: =Y25*AO25*12 -> 531,085.20
A26: 9 | G26: Заведующий практикой | Y26: 1 | AO26: 36,818.98 | BF26: 8,006.00 | BX26: 24,791.94 | CQ26: 4,021.04 | DI26: 50 | DY26: 5,041.22 | EO26: 441,827.76
A27: 10 | G27: Социалный педагог | Y27: 1 | AO27: 36,040.77 | BF27: 6,887.66 | BX27: 24,842.62 | CQ27: 4,310.49 | DI27: 63 | DY27: =(BF27+CQ27)*0.5 -> 5,599.08 | EO27: =Y27*AO27*12 -> 432,489.24
A28: 11 | G28: Педагог-библиотекарь | Y28: 0.5 | AO28: 12,556.04 | BF28: 3,910.86 | BX28: 7,656.92 | CQ28: 988.26 | DI28: 25 | DY28: 2,449.56 | EO28: =Y28*AO28*12*2 -> 150,672.48
A29: 12 | G29: Воспитатель | Y29: 0.5 | AO29: 27,755.81 | BF29: 7,166.00 | BX29: 17,583.58 | CQ29: 3,006.23 | DI29: 42 | DY29: 5,401.52 | EO29: 111,023.24
A30: 13 | G30: Педагог-организатор | Y30: 1 | AO30: 26,068.42 | BF30: 6,887.66 | BX30: 16,558.01 | CQ30: 2,622.75 | DI30: 38 | DY30: 4,755.21 | EO30: =Y30*AO30*11 -> 286,752.62
A31: 14 | G31: Педагог-психолог | Y31: 0.5 | AO31: 12,358.44 | BF31: 3,491.00 | BX31: 7,990.90 | CQ31: 876.54 | DY31: 2,183.77 | EO31: =Y31*AO31*12*2 -> 148,301.28
Y32: =SUM(Y24:AN31) -> 6.5 | AO32: =SUM(AO24:BE31) -> 232,695.44 | BF32: =SUM(BF24:BW31) -> 53,779.84 | BX32: =SUM(BX24:CP31) -> 150,513.31 | CQ32: =SUM(CQ24:DH31) -> 28,402.29 | DY32: =SUM(DY24:EN31) -> 41,492.80 | EO32: =SUM(EO24:FE31) -> 2,544,230.38
A33: 15 | G33: Инженер/Заведующий АХО | Y33: 1 | AO33: 37,240.35 | BF33: 8,480.00 | BX33: =AO33-BF33-CQ33 -> 23,072.29 | CQ33: 5,688.06 | DI33: =CQ33*100/BF33 -> 67 | DY33: 6,904.12 | EO33: =Y33*AO33*12 -> 446,884.20
A34: 16 | G34: Специалист по ОТ | Y34: 1 | AO34: 33,728.31 | BF34: 7,846.00 | BX34: =AO34-BF34-CQ34 -> 21,899.97 | CQ34: 3,982.34 | DI34: =CQ34*100/BF34 -> 51 | DY34: 6,254.42 | EO34: =Y34*AO34*12 -> 404,739.72
A35: 17 | G35: Юрисконсульт | Y35: 0.5 | AO35: 16,894.71 | BF35: 3,923.00 | BX35: 10,411.42 | CQ35: 2,560.29 | DI35: 65 | DY35: 3,057.42 | EO35: =Y35*AO35*12*2 -> 202,736.52
A36: 18 | G36: Документовед | Y36: 1 | AO36: 43,259.11 | BF36: 7,846.00 | BX36: 29,447.88 | CQ36: 5,965.23 | DI36: 76 | DY36: =(BF36+CQ36)*0.5 -> 6,905.62 | EO36: 519,109.32
A37: 19 | G37: Специалист по закупкам | Y37: 0.5 | AO37: 16,894.91 | BF37: 3,923.00 | BX37: 10,411.62 | CQ37: 2,560.29 | DI37: 65 | DY37: 3,057.42 | EO37: =Y37*AO37*12*2 -> 202,738.92
A38: 20 | G38: Секретарь УЧ | Y38: 1 | AO38: 32,647.15 | BF38: 7,624.00 | BX38: 20,807.94 | CQ38: 4,215.21 | DI38: 55 | DY38: 6,061.74 | EO38: 391,765.80
A39: 21 | G39: Программист | Y39: 1 | AO39: 28,322.88 | BF39: 7,846.00 | BX39: 16,110.07 | CQ39: 4,366.81 | DI39: 56 | DY39: 5,610.44 | EO39: 339,874.56
A40: 22 | G40: Бухгалтер | Y40: 3 | AO40: 30,293.38 | BF40: 7,846.00 | BX40: 19,556.10 | CQ40: 2,891.28 | DI40: 37 | DY40: 17,234.67 | EO40: 1,090,561.68
A41: 23 | G41: Водитель | Y41: 1 | AO41: 29,946.05 | BF41: 6,686.00 | BX41: 17,650.03 | CQ41: 5,610.02 | DI41: 84 | DY41: 5,187.28 | EO41: 359,352.60
A42: 24 | G42: Гардеробщик | Y42: 1 | AO42: 27,142.92 | BF42: 6,370.00 | BX42: 17,233.02 | CQ42: 3,539.90 | DI42: 56 | DY42: 4,954.95 | EO42: =Y42*AO42*5 -> 135,714.60
A43: 25 | G43: Сторож | Y43: 5 | AO43: 24,540.17 | BF43: 6,370.00 | BX43: 16,422.89 | CQ43: 1,747.28 | DI43: 27 | DY43: 22,573.11 | EO43: 1,472,410.20
A44: 26 | G44: Уборщик служ. помещ. | Y44: 3 | AO44: 25,193.57 | BF44: 6,370.00 | BX44: 16,385.09 | CQ44: 2,438.48 | DI44: 38 | DY44: 4,738.00 | EO44: 906,968.52
A45: 27 | G45: Уборщик произв. помещ. | Y45: 1 | AO45: 25,522.51 | BF45: 6,370.00 | BX45: 15,812.37 | CQ45: 3,340.14 | DI45: 52 | DY45: 4,742.99 | EO45: 306,270.12
A46: 28 | G46: Дежурный по общежитию | Y46: 4 | AO46: 26,857.62 | BF46: 6,686.00 | BX46: 18,451.96 | CQ46: 1,719.66 | DI46: 26 | DY46: 5,003.34 | EO46: =Y46*AO46*12-0.26 -> 1,289,165.50
A47: 29 | G47: Повар | Y47: 1 | AO47: 25,831.42 | BF47: 6,686.00 | BX47: 14,825.36 | CQ47: 4,320.06 | DI47: 65 | DY47: 4,588.30 | EO47: 309,977.04
A48: 30 | G48: Кухонная рабочая | Y48: 0.5 | AO48: 28,774.90 | BF48: 6,370.00 | BX48: 16,479.80 | CQ48: 5,925.10 | DI48: 93 | DY48: 5,906.61 | EO48: 115,099.59
A49: 31 | G49: Уборщик территории | Y49: 0.5 | AO49: 7,477.38 | BF49: 3,185.00 | BX49: 2,835.15 | CQ49: 1,457.23 | DI49: 46 | DY49: 1,830.61 | EO49: =Y49*AO49*12*2 -> 89,728.56
A50: 32 | G50: Кладовщик | Y50: 1 | AO50: 24,490.72 | BF50: 6,370.00 | BX50: 16,396.99 | CQ50: 1,723.73 | DI50: 27 | DY50: 4,564.80 | EO50: 293,888.64
A51: 33 | G51: Комендант общежития | Y51: 1 | AO51: 26,295.83 | BF51: 6,686.00 | BX51: 16,992.26 | CQ51: 2,617.57 | DI51: 39 | DY51: 4,834.88 | EO51: 315,549.96
A52: 34 | G52: Мойщик посуды | Y52: 0.35 | AO52: 10,949.13 | BF52: 6,686.00 | BX52: 397.95 | CQ52: 3,865.18 | DI52: 58 | DY52: 4,688.99 | EO52: 76,643.94
A53: 35 | G53: Рабочий по КО и РЗ | Y53: 1 | AO53: 26,020.53 | BF53: 6,686.00 | BX53: 13,724.51 | CQ53: 5,610.02 | DI53: 84 | DY53: 5,187.28 | EO53: 312,246.36
Y54: =SUM(Y33:AN53) -> 29.35 | AO54: =SUM(AO33:BE53) -> 548,323.55 | BF54: =SUM(BF33:BW53) -> 136,855.00 | BX54: =SUM(BX33:CP53) -> 335,324.67 | CQ54: =SUM(CQ33:DH53) -> 76,143.88 | DY54: =SUM(DY33:EN53) -> 133,886.99 | EO54: =SUM(EO33:FE53) -> 9,581,426.35
Y55: =Y54+Y32+Y23+Y21+Y19 -> 59.7 | AO55: =AO21+AO23+AO32+AO19+AO54 -> 1,166,152.56 | BF55: =BF21+BF23+BF32+BF19+BF54 -> 283,404.41 | BX55: =BX21+BX23+BX32+BX19+BX54 -> 735,890.32 | CQ55: =CQ21+CQ23+CQ32+CQ19+CQ54 -> 146,857.80 | DY55: =DY21+DY23+DY32+DY19+DY54 -> 236,902.59 | EO55: =EO21+EO23+EO32+EO19+EO54 -> 26,938,359.40
A56: Итого: | Y56: х | BF56: х | BX56: х | CQ56: х | DI56: х | DY56: х | EO56: =EO55 -> 26,938,359.40
A57: * Заполняется в соответствии с приказом Минфина России от 28.07.2010 № 81н "О требованиях к плану финансово-хозяйственной деятельности государственного (муниципального) учреждения" (в редакции приказа от 29.08.2016 № 142н)

Sheet 14
A2: 1.2. Расчеты (обоснования) выплат персоналу при направлении в служебные командировки
A4: № п/п | G4: Наименование расходов | AE4: Средний размер выплаты на одного работника в день, руб. | BD4: Количество работников, чел. | BT4: Количество дней | CJ4: Сумма, руб. (гр. 3 x гр. 4 x гр. 5)
A5: 1 | G5: 2 | AE5: 3 | BD5: 4 | BT5: 5 | CJ5: 6
A6: 1 | G6: Суточные | AE6: 100 | BD6: 18 | BT6: 264 | CJ6: 26,400.00
A7: 2 | G7: Проживание в командировке | AE7: 550 | BD7: 15 | BT7: 82 | CJ7: 45,827.80
A8: 3 | G8: Проезд в командировку | CJ8: 201,871.32
G9: Итого: | AE9: х | BD9: х | BT9: х | CJ9: =CJ6+CJ7+CJ8 -> 274,099.12
A11: 1.3. Расчеты (обоснования) выплат персоналу по уходу за ребенком
A13: № п/п | G13: Наименование расходов | AE13: Численность работников, получающих пособие | AZ13: Количество выплат в год на одного работника | BR13: Размер выплаты (пособия) в месяц, руб. | CJ13: Сумма, руб. (гр. 3 x гр. 4 x гр. 5)
A14: 1 | G14: 2 | AE14: 3 | AZ14: 4 | BR14: 5 | CJ14: 6
A15: 1. | G15: Пособие по уходу за ребенком до 1,5 лет | AE15: 5 | AZ15: 9.2 | BR15: 10,296.96 | CJ15: =AE15*AZ15*BR15-0.19 -> 473,659.97
A16: 2. | G16: Пособие по уходу за ребенком до 1,5 лет | AE16: 5 | AZ16: 8.9 | BR16: 75.00 | CJ16: =AE16*AZ16*BR16-5 -> 3,332.50
G17: Итого: | AE17: х | AZ17: х | BR17: х | CJ17: =SUM(CJ15:CJ16) -> 476,992.47
A19: 1.4. Расчеты (обоснования) страховых взносов на обязательное страхование в Пенсионный фонд Российской Федерации, в Фонд социального страхования Российской Федерации, в Федеральный фонд обязательного медицинского страхования
A21: № п/п | G21: Наименование государственного внебюджетного фонда | BW21: Размер базы для начисления страховых взносов, руб. | CM21: Сумма взноса, руб.
A22: 1 | G22: 2 | BW22: 3 | CM22: 4
A23: 1 | H23: Страховые взносы в Пенсионный фонд Российской Федерации, всего | BW23: х | CM23: =CM24+CM26 -> 6,208,093.97
A24: 1.1 | H24: в том числе: | BW24: 28,173,376.10 | CM24: =BW24*22%+0.07 -> 6,198,142.81
H25: по ставке 22,0%
A26: 1.2 | H26: по ставке 10,0% | BW26: 99,511.53 | CM26: =BW26*10% -> 9,951.15
A27: 1.3 | H27: с применением пониженных тарифов взносов в Пенсионный фонд Российской Федерации для отдельных категорий плательщиков
A28: 2 | H28: Страховые взносы в Фонд социального страхования Российской Федерации, всего | BW28: х | CM28: =CM29+CM32 -> 832,991.12
A29: 2.1 | H29: в том числе: | BW29: 26,827,092.46 | CM29: =BW29*2.9%-0.07 -> 777,985.61
H30: обязательное социальное страхование на случай временной нетрудоспособности и в связи с материнством по ставке 2,9%
A31: 2.2 | H31: с применением ставки взносов в Фонд социального страхования Российской Федерации по ставке 0,0%
A32: 2.3 | H32: обязательное социальное страхование от несчастных случаев на производстве и профессиональных заболеваний по ставке 0,2% | BW32: 27,526,880.25 | CM32: 55,005.51
A33: 2.4 | H33: обязательное социальное страхование от несчастных случаев на производстве и профессиональных заболеваний по ставке 0,_%*
A34: 2.5 | H34: обязательное социальное страхование от несчастных случаев на производстве и профессиональных заболеваний по ставке 0,_%*
A35: 3 | H35: Страховые взносы в Федеральный фонд обязательного медицинского страхования, всего (по ставке 5,1%) | BW35: 28,272,887.63 | CM35: =BW35*5.1%+0.02 -> 1,441,917.29
G36: Итого: | BW36: х | CM36: =SUM(CM24:DA35) -> 9,315,993.50
A38: _____*_Указываются страховые тарифы, дифференцированные по классам профессионального риска, установленные Федеральным законом от 22 декабря 2005 г. № 179-ФЗ "О страховых тарифах на обязательное социальное страхование от несчастных случаев на производстве и профессиональных заболеваний на 2006 год" (Собрание законодательства Российской Федерации, 2005, № 52, ст. 5592; 2015, № 51, ст. 7233).
A40: 2. Расчеты (обоснования) расходов на социальные и иные выплаты населению
A43: Код видов расходов | X43: 112
A45: Источник финансового обеспечения | AP45: 4 - Субсидия на выполнение гос. задания
A47: № п/п | H47: Наименование показателя | BD47: Размер одной выплаты, руб. | BT47: Количество выплат в год | CJ47: Общая сумма выплат, руб. (гр. 3 x гр. 4)
A48: 1 | H48: 2 | BD48: 3 | BT48: 4 | CJ48: 5
A49: 1. | H49: Компенсация сотрудникам стоимости первичной медицинской комиссии | BD49: 6,322.13 | BT49: 9 | CJ49: 56,899.18
H50: Итого: | BD50: х | BT50: х | CJ50: =CJ49 -> 56,899.18
A52: Код видов расходов | X52: 112
A54: Источник финансового обеспечения | AP54: 5 - Субсидии на иные цели
A56: № п/п | H56: Наименование показателя | BD56: Размер одной выплаты, руб. | BT56: Количество выплат в год | CJ56: Общая сумма выплат, руб. (гр. 3 x гр. 4)
A57: 1 | H57: 2 | BD57: 3 | BT57: 4 | CJ57: 5
A58: 1 | H58: Оплата стоимости проезда и провоза багажа к месту отдыха и обратно | BD58: 17,482.70 | BT58: 26 | CJ58: 454,550.15
H59: Итого: | BD59: х | BT59: х | CJ59: =CJ58 -> 454,550.15
A61: Код видов расходов | X61: 119
A63: Источник финансового обеспечения | AP63: 5 - Субсидии на иные цели
A65: № п/п | H65: Наименование показателя | BD65: Размер одной выплаты, руб. | BT65: Количество выплат в год | CJ65: Общая сумма выплат, руб. (гр. 3 x гр. 4)
A66: 1 | H66: 2 | BD66: 3 | BT66: 4 | CJ66: 5
A67: 1 | H67: Начисления на компенсацию стоимости проезда и провоза багажа к месту отдыха и обратно | CJ67: 33,835.19
H68: Итого: | BD68: х | BT68: х | CJ68: =CJ67 -> 33,835.19
A69: Код видов расходов | X69: 321
A71: Источник финансового обеспечения | AP71: 5 - Субсидии на иные цели
A73: № п/п | H73: Наименование показателя | BD73: Размер одной выплаты, руб. | BT73: Количество выплат в год | CJ73: Общая сумма выплат, руб. (гр. 3 x гр. 4)
A74: 1 | H74: 2 | BD74: 3 | BT74: 4 | CJ74: 5
A75: 1. | H75: Компенсационные выплаты детям-сиротам | CJ75: 1,925,981.88
A76: 2. | H76: Компенсационные выплаты учащимся из категории ТЖС | CJ76: 228,096.00
H77: Итого: | BD77: х | BT77: х | CJ77: =CJ75+CJ76 -> 2,154,077.88
A79: 3. Расчет (обоснование) расходов на уплату налогов, сборов и иных платежей
A81: Код видов расходов | X81: 321
A83: Источник финансового обеспечения | AP83: 4 - Субсидия на выполнение гос. задания
A85: № п/п | H85: Наименование расходов | BD85: Налоговая база, руб. | BT85: Ставка налога, % | CE85: Сумма исчисленного налога, подлежащего уплате, руб. (гр. 3 x гр. 4 / 100)
A86: 1 | H86: 2 | BD86: 3 | BT86: 4 | CE86: 5
A87: 1 | H87: Земельный налог (к.н. 51:28:0050001:23) | BD87: 71,338,940 | BT87: 1.5 | CE87: 1,078,358
A88: 2 | H88: Налог на имущество | BT88: 2.2 | CE88: 2,754,630
H89: Итого: | BT89: х | CE89: =SUM(CE87:CE88) -> 3,832,988
A91: Код видов расходов | X91: 321
A93: Источник финансового обеспечения | AP93: 2 - Приносящая доход деятельность
A95: № п/п | H95: Наименование расходов | BD95: Налоговая база, руб. | BT95: Ставка налога, % | CE95: Сумма исчисленного налога, подлежащего уплате, руб. (гр. 3 x гр. 4 / 100)
A96: 1 | H96: 2 | BD96: 3 | BT96: 4 | CE96: 5
A97: 1 | H97: Налог на имущество | BT97: 2.2 | CE97: 13,165
H98: Итого: | BT98: х | CE98: =SUM(CE97:CE97) -> 13,165
A100: Код видов расходов | X100: 113
A102: Источник финансового обеспечения | AP102: 4 - Субсидия на выполнение гос. задания
A104: № п/п | H104: Наименование расходов | BD104: Сумма, руб. | BT104: количество | CE104: Сумма исчисленного налога, подлежащего уплате, руб. (гр. 3 x гр. 4 / 100)
A105: 1 | H105: 2 | BD105: 3 | BT105: 4 | CE105: 5
A106: 1 | H106: Прочие расходы (компенсация расходов при направлении студентов на соревнования) | CE106: 1,001.97
H107: Итого: | BT107: х | CE107: =SUM(CE106:CE106) -> 1,001.97
A109: Код видов расходов | X109: 244
A111: Источник финансового обеспечения | AP111: 2 - приносящая доход деятельность
A113: № п/п | H113: Наименование расходов | BD113: Стоимость, руб. | BT113: количество | CE113: Сумма, руб.
A114: 1 | H114: 2 | BD114: 3 | BT114: 4 | CE114: 5
A115: 1 | H115: Прочие расходы (кульмассовые мероприятия) | BD115: 1,538 | BT115: 5 | CE115: 7,688.83
H116: Итого: | BT116: х | CE116: =SUM(CE115:CE115) -> 7,688.83
A118: Код видов расходов | X118: 853
A120: Источник финансового обеспечения | AP120: 4 - Субсидия на выполнение гос. задания
A122: № п/п | H122: Наименование расходов | BD122: Стоимость, руб. | BT122: Кол-во | CE122: Сумма, руб.
A123: 1 | H123: 2 | BD123: 3 | BT123: 4 | CE123: 5
A124: 1 | H124: Госпошлина за переоф. свид. (лицензирование) | CE124: 4,250.00
H125: Итого: | BT125: х | CE125: =CE124 -> 4,250.00
A127: Код видов расходов | X127: 853
A129: Источник финансового обеспечения | AP129: 2 - Приносящая доход деятельность
A131: № п/п | H131: Наименование расходов | CE131: Сумма, руб.
A132: 1 | H132: 2 | BD132: 3 | BT132: 4 | CE132: 5
A133: 1
H134: Итого: | BT134: х
A136: 4. Расчет (обоснование) прочих расходов (кроме расходов на закупку товаров, работ, услуг)
A138: Код видов расходов | X138: 340
A140: Источник финансового обеспечения | AP140: 5 - субсидии на иные цели
A142: № п/п | H142: Наименование показателя | BD142: Размер одной выплаты, руб. | BT142: Количество выплат в год | CJ142: Общая сумма выплат, руб. (гр. 3 x гр. 4)
A143: 1 | H143: 2 | BD143: 3 | BT143: 4 | CJ143: 5
A144: 1 | H144: Стипендия учащимся академическая (102 чел.) | BD144: 1240 | CJ144: 1,517,760.00
A145: 2 | H145: Стипендия учащимся социальная (71 чел.) | BD145: 1861 | CJ145: 1,525,932.00
H146: Итого: | BD146: х | BT146: х | CJ146: =SUM(CJ144:CJ145) -> 3,043,692.00
A148: 5. Расчет (обоснование) расходов на закупку товаров, работ, услуг
A150: Код видов расходов | X150: 244
A152: Источник финансового обеспечения | AP152: 4 - Субсидия на выполнение гос. задания
A154: 5.1. Расчет (обоснование) расходов на оплату услуг связи
A156: № п/п | H156: Наименование расходов | AP156: Количество номеров | BF156: Количество платежей в год | BV156: Стоимость за единицу, руб. | CL156: Сумма, руб. (гр. 3 x гр. 4 x гр. 5)
A157: 1 | H157: 2 | AP157: 3 | BF157: 4 | BV157: 5 | CL157: 6
A158: 1 | H158: Услуги телефонной связи (местной, внутризоновой, междугородной связи) | AP158: 6 | BF158: 12 | CL158: 49,282.20
A159: 2 | H159: Услуги почтовой связи | BF159: 9 | BV159: 2393.68 | CL159: 21,543.16
A160: 3 | H160: Услуги связи по передаче данных | AP160: 1 | BF160: 1 | BV160: 4330 | CL160: 6,650.00
A161: 4 | H161: Выделенный доступ в сети Интернет | AP161: 2 | BF161: 12 | BV161: 5546 | CL161: 66,552.00
A162: 5 | H162: Сотовая связь | AP162: 1 | BF162: 2 | BV162: 250 | CL162: 500.00
H163: Итого: | AP163: х | BF163: х | BV163: х | CL163: =SUM(CL158:CL162) -> 144,527.36
A165: 5.2. Расчет (обоснование) расходов на оплату транспортных услуг
A167: № п/п | H167: Наименование расходов | BD167: Количество услуг перевозки | BT167: Цена услуги перевозки, руб. | CJ167: Сумма, руб. (гр. 3 x гр. 4)
A168: 1 | H168: 2 | BD168: 3 | BT168: 4 | CJ168: 5
A169: 1 | H169: Транспортные услуги | BD169: 2 | CJ169: 27,000.00
H170: Итого: | CJ170: =CJ169 -> 27,000.00
A172: 5.3. Расчет (обоснование) расходов на оплату коммунальных услуг
A174: № п/п | H174: Наименование показателя | AP174: Размер потребления ресурсов | BF174: Тариф (с учетом НДС), руб. | BV174: Индексация, % | CL174: Сумма, руб. (гр. 4 x гр. 5 x гр. 6)
A175: 1 | H175: 2 | AP175: 4 | BF175: 5 | BV175: 6 | CL175: 6
A176: 1 | H176: Теплоэнергия | AP176: 1837.31 | BF176: 3685.6 | CL176: 6,771,576.42
A177: 2 | H177: Холодное водоснабжение на подогрев | AP177: 91.362 | BF177: 3685.6 | CL177: 426,166.17
A178: 3 | H178: Холодное водоснабжение | AP178: 1543.98 | BF178: 31.07 | CL178: 33,394.03
A179: 3 | H179: Холодное водоснабжение | AP179: 1977.13 | BF179: 31.07 | CL179: 61,429.52
A180: 4 | H180: Водоотведение | AP180: 3521.11 | BF180: 83.49 | CL180: 293,977.68
A181: 5 | H181: Электроэнегрия | AP181: 143676.14 | BF181: 5.23 | CL181: 751,426.18
H182: Итого: | AP182: х | BF182: х | BV182: х | CL182: =SUM(CL176:CL181) -> 8,337,970.00
A184: 5.4. Расчет (обоснование) расходов на оплату работ, услуг по содержанию имущества
A186: № п/п | H186: Наименование расходов | BD186: Объект | BT186: Количество работ (услуг) | CJ186: Стоимость работ (услуг), руб.
A187: 1 | H187: 2 | BD187: 3 | BT187: 4 | CJ187: 5
A188: 1 | H188: Вывоз ТБО | BT188: 12 | CJ188: 139,258.68
A189: 2 | H189: Вознаграждения по договору ГПХ с начислениями | BT189: 1 | CJ189: 416,499.49
A190: 3 | H190: Камерная обработка мягкого инвентаря | BT190: 1 | CJ190: 12,104.00
A191: 4 | H191: Дезинсекция подвального помещения | BT191: 1 | CJ191: 1,640.58
A192: 5 | H192: Ремонт автотранпортных средств | BT192: 2 | CJ192: 28,626.00
A193: 6 | H193: Ремонт посудомоечной машины | BT193: 2 | CJ193: 29,379.00
A194: 7 | H194: ТО и ремонт системы охранно-пожарной системы контроля управления доступом и видеонабления | BT194: 12 | CJ194: 93,699.96
A195: 9 | H195: Т/о оборудования дублирования на пульт ПЧ | BT195: 12 | CJ195: 42,720.00
A196: 10 | H196: Зарядка огнетушителей | BT196: 46 | CJ196: 21,000.00
A197: 11 | H197: Предрейсовый техосмотр автотранспорта | BT197: 10 | CJ197: 36,033.25
A198: 12 | H198: Т/о оборудования учета и контроля расхода теплоэнергии | BT198: 12 | CJ198: 25,200.00
A199: 13 | H199: Периодическая поверка СИ | CJ199: 30,559.16
A200: 14 | H200: Гидропневмопромывка и опрессовка | BT200: 1 | CJ200: 59,000.00
A201: 15 | H201: Капитальный ремонт помещений в общежитии (МКД) | BT201: 4 | CJ201: 13,771.20
A202: 16 | H202: Диагностика ОС с выдачей актов тех. заключения | BT202: 1 | CJ202: 6,050.00
A203: 17 | H203: ГТО автотранспортных средств | BT203: 2 | CJ203: 1,881.00
H204: ИТОГО | CJ204: =SUM(CJ188:CJ203) -> 957,422.32
A205: 5.5. Расчет (обоснование) расходов на оплату прочих работ, услуг
A207: № п/п | H207: Наименование расходов | BT207: Количество услуг | CJ207: Стоимость услуги, руб.
A208: 1 | H208: 2 | BT208: 3 | CJ208: 4
A209: 1 | H209: Организация питания учащихся на время совернований, демонстрациоонх экзаменов (по договору) | CJ209: 20,061.00
A210: 2 | H210: Контроль при помощи ТСО | BT210: 12 | CJ210: 11,247.38
A211: 3 | H211: Предоставление общежития на время командировок (по договору) | BT211: 2 | CJ211: 2,250.00
A212: 4 | H212: Сопровождение компьютерных программ | CJ212: 213,972.54
A213: 5 | H213: Разработка систем менеджмента (ФАССП) | BT213: 1 | CJ213: 34,565.36
A214: 6 | H214: Переподготовка обучающихся с категории "В" на "С" | BT214: 4 | CJ214: 337,875.00
A215: 7 | H215: Нотариальные услуги | BT215: 5 | CJ215: =2430+2800+1800+100 -> 7,130.00
A216: 8 | H216: Предрейсовые медосмотры водителя | BT216: 10 | CJ216: 21,600.00
A217: 9 | H217: Утилизация ТКО | BT217: 12 | CJ217: 15,866.34
A218: 10 | H218: Демеркуризация ртутьсодержащих ламп | BT218: 1 | CJ218: 11,375.00
A219: 11 | H219: Повышение квалификации | BT219: 5 | CJ219: =5000+1800+8000 -> 14,800.00
A220: 12 | H220: Исследование пищевых продуктов | BT220: 2 | CJ220: 4,762.56
A221: 13 | H221: Сертификация спортивных объектов | BT221: 1 | CJ221: 16,500.00
A222: 14 | H222: Подписка на периодические издания | BT222: 2 | CJ222: =67749.98+8334+1275+52577.17 -> 129,936.15
A223: 15 | H223: Медосмотр сотрудников | BT223: 55 | CJ223: 192,500.00
A224: 16 | H224: Приобретение бланков строгой отчетности (труд.книжки) | BT224: 1 | CJ224: 7,500.00
A225: 17 | H225: Страхование автомобилей ОСАГО | BT225: 2 | CJ225: 6,391.33
A226: 18 | H226: Организационные сборы за участие WorldSkills | BT226: 3 | CJ226: =14400+21104+14000 -> 49,504.00
A227: 19 | H227: Рыночная оценка земельного участка | BT227: 1 | CJ227: 19,500.00
A228: 20 | H228: Вознаграждения по договорам ГПХ с начислениями | CJ228: 250,442.21
H229: Итого: | BT229: х | CJ229: =SUM(CJ209:CJ228) -> 1,367,778.87
A231: 5.7. Расчет (обоснование) расходов на приобретение основных средств, материальных запасов
A233: Код видов расходов | X233: 244
A235: Источник финансового обеспечения | AP235: 4 - Субсидии на выполнение гос. задания
A237: № п/п | H237: Наименование расходов | BD237: Количество | BT237: Средняя стоимость, руб. | CJ237: Сумма, руб. (гр. 2 x гр. 3)
H238: 1 | BD238: 2 | BT238: 3 | CJ238: 4
A239: 1 | H239: Увеличение стоимости библиотечсного фонда | CJ239: 172,738.42
A240: 2 | H240: Приобретение ОС (электроприборы) | CJ240: 7,700.00
A241: 3 | H241: Приобретение ОС (для учебных целей) | CJ241: 157,972.00
A242: 4 | H242: Перевязочные средства и медикаменты | CJ242: 9,709.00
A243: 5 | H243: Вода для обучающихся (питьевой режим) | CJ243: 15,500.00
A244: 6 | H244: ГСМ на общехозяйственные расходы | CJ244: 189,491.53
A245: 7 | H245: Спецодежда, мягкий инвентарь (СИЗ) | CJ245: 116,150.00
A246: 8 | H246: Запчасти на автомобиль | CJ246: =4320+950+1870+1840+5000+1810 -> 15,790.00
A247: 9 | H247: Канцелярские принадлежности (на 1 чел) | CJ247: =40227.16+160 -> 40,387.16
A248: 10 | H248: Моющие, дезинфицирующие средства (на 1м2) | CJ248: =3471.83+91640.06 -> 95,111.89
A249: 11 | H249: Строительные материалы (на 1м2) | CJ249: 644.34
A250: 12 | H250: Хозяйственные товары | CJ250: =2809+21786+6189+26705.34+1240+6040+5748+180+1185+1988.35+501+765+360+1420 -> 76,916.69
A251: 13 | H251: Кухонные принадлежности (посуда, тазы, ножи) | CJ251: =3630.5+2082 -> 5,712.50
A252: 14 | H252: Закупка картриджей | CJ252: =24900+640+2250 -> 27,790.00
A253: 15 | H253: Приобретение конвертов (к инф.стендам) | CJ253: 19,116.00
A254: 16 | H254: Приобретение расходных материалов для обучающихся | CJ254: =4998.5+4260+1000+3000+192000 -> 205,258.50
H255: Итого: | BT255: х | CJ255: =SUM(CJ239:CJ254) -> 1,155,988.03
A257: Код видов расходов | X257: 244
A259: Источник финансового обеспечения | AP259: 5 - Субсидии на иные цели
A261: № п/п | H261: Наименование расходов | BD261: Объект | BT261: Количество работ (услуг) | CJ261: Стоимость работ (услуг), руб.
A262: 1 | H262: 2 | BD262: 3 | BT262: 4 | CJ262: 5
... 32 more rows

Sheet 15
A1: Расчет объемов субсидии на выполнение государственного задания на 2019 год
E2: руб.
A3: Наименование затрат | B3: ед. изм. | C3: количество | D3: расчет | E3: сумма
A4: Затраты на оплату труда с начислениями на выплаты по оплате труда в том числе: | E4: =E5+E7+E8 -> 39,058,107.36
A5: Заработная плата работникам | B5: руб. | C5: 64 | E5: 29,775,301.18
A6: в том числе: - материальная помощь педработникам - материальная помощь АУП | B6: руб. | C6: 26 2 | D6: 9695,84 2*21397 | E6: 252 091,74 42 794,00
A7: Начисления на оплату труда | B7: руб. | E7: 8,919,912.22
A8: Иные выплаты | B8: руб. | D8: Выходное пособие при сокращении штата 192954,72 руб.; Пособие по врем.нетруд.за счет работодателя 82939,62 руб. Компенсация входного медосмотра сотрудникам =86999,62 | E8: =192954.72+81584.05+1355.57+19147.58+67852.04 -> 362,893.96
A9: Социальные и иные выплаты населению: | E9: =E11+E12+E10 -> 297,185.11
A10: Пособие по уходу за ребенком до 3-х лет | D10: Пособие до 3-х лет | E10: 3,322.50
A11: Командировочные расходы | B11: руб. | D11: Суточные 16400 руб.; Проживание 23674 руб.; Проезд 128684,33 руб. | E11: =16400+128564.33+23674+120 -> 168,758.33
A12: Средний заработок на период трудоустройства при сокращении штатной численности | B12: руб. | D12: Средний заработок на период трудоустройства 125104,28 руб.; | E12: 125,104.28
A13: Затраты на приобретение услуг связи в т.ч. | E13: =E14+E15+E16+E17+E18 -> 131,410.58
A14: услуги телефонной связи (местной, внутризоновой, междугородней телефонной связи) | B14: усл. | C14: 12 | D14: Предоставление абонентской линии - 1557,60 * 6 шт.- 18691,20 руб.; Междугородные соединения - 793 мин - 5394,84 руб.; Местные соединения - 11566,9 мин. - 8663,18 руб.; Внутризоновые соединения - 6699 мин - 16060,74 руб. | E14: 48,809.96
A15: услуги почтовой связи: | B15: усл. | C15: 12 | E15: 15,164.62
A16: услуги связи по передаче данных | B16: усл. | C16: 3 | E16: 3,110.00
A17: выделенный доступ в сети интернет | B17: усл. | C17: 12 | D17: 3457,16 руб. * 12 мес. = 41486 руб.; 2040 руб. * 11 мес. = 22440 руб. | E17: 63,926.00
A18: сотовая связь | B18: усл. | C18: 2 | D18: 200 руб. * 2 мес. | E18: 400.00
A19: Затраты на приобретение транспортных услуг в т.ч. | E19: =SUM(E20:E20) -> 29,620.00
A20: найм транспортных средств | B20: усл. | C20: 2 | E20: 29,620.00
A21: Затраты на приобретение коммунальных услуг в т.ч. | E21: =E22+E23+E24+E26+E27+E25+E28 -> 7,172,484.78
A22: электроснабжение | B22: кВт/ч | C22: 203559.6 | D22: 203559,6 кВт/ч * 4,20 руб. | E22: 854,950.28
A23: теплоснабжение | B23: гКал | C23: 1374.83 | D23: 1374,83 гКал * 3794,47 руб. | E23: 5,216,758.46
A24: водоснабжение на подогрев | B24: гКал | C24: 155.35 | D24: 155,35 гКал * 3794,47 руб. | E24: 589,481.12
A25: водоснабжение | B25: м3 | C25: 2210.94 | D25: 2210,94 м3 * 31,34 руб. | E25: 69,290.78
A26: водоснабжение | B26: м3 | C26: 1302.05 | D26: 1302,05 м3 * 37,52 руб. | E26: 48,853.01
A27: водоотведение | B27: м3 | C27: 3240.59 | D27: 3240,59 м3 * 83,88 руб. | E27: 271,820.74
A28: вывоз ТБО (рег.оператор) | B28: мес. | C28: 10 | D28: 12133,04 руб. *10 мес. | E28: 121,330.39
A29: Затраты на содержание недвижимого имущества в т.ч. | E29: =E30+E31+E32+E33+E34+E35+E36+E37+E38+E39 -> 515,603.17 | F29: 2020
A30: Вознаграждения по договору ГПХ с начислениями (содержание, обслуживание имущества) | B30: усл. | E30: =51189+18854.54+96758+14562.46+18385+53450+14484.97 -> 267,683.97 | F30: =429395+116366.05 -> 545,761.05
A31: Вывоз ТБО | B31: усл. | C31: 1 | E31: 7,248.19 | F31: 0.00
A32: Т/о оборудования учета и контроля расхода теплоэнергии | B32: усл. | C32: 11 | D32: 11 мес. * 2000 руб. | E32: 22,000.00 | F32: 19,000.00
A33: Т/о оборудования дублирования на пульт ПЧ | B33: усл. | C33: 10 | D33: 10 мес. * 3560 руб. | E33: 35,600.00 | F33: 19,176.70
A34: ТО и ремонт системы охранно-пожарной системы контроля управления доступом и видеонабления | B34: усл. | C34: 9 | D34: 9 мес.* 7808,33 руб. | E34: 70,274.97 | F34: 43,890.00
A35: Услуги по испытанию внутреннего пожарного водопровода и кранов на водоотдачу | B35: усл. | C35: 1 | D35: 1 мес. * 20000 руб. | E35: 20,000.00 | F35: 0.00
A36: Капитальный ремонт помещений в общежитии (МКД) | B36: усл. | C36: 12 | D36: 12 мес. * 3442,80 руб. | E36: 41,313.60 | F36: 0.00
A37: Услуга по гидропневмопромывке и гидравлической опресовке трубопроводов систем отопления | B37: усл. | C37: 1 | D37: 1 мес. * 49500 руб. | E37: 49,500.00 | F37: 0.00
A38: Опломбировка счетчиков в общежитии (2 эт.) | B38: усл. | C38: 1 | E38: 411.31 | F38: 0.00
A39: Размещение ТКО | B39: усл. | C39: 1 | D39: 1 * 1571,13 руб. | E39: 1,571.13 | F39: =SUM(F30:F38) -> 627,827.75
A40: Затраты на содержание особо ценного движимого имущества в т.ч. | E40: =E41+E43+E42+E45+E44+E46+E47 -> 158,010.67
A41: Ремонт автотранспортных средств | B41: усл. | C41: 5 | E41: =23758+2400 -> 26,158.00 | F41: 10240
A42: Предрейсовый техосмотр автотранспорта | B42: усл. | C42: 177 | D42: 177 посещ.* 190 руб. | E42: =33630+3592.6 -> 37,222.60 | F42: 26085.86
A43: Т/о ТС для списания | B43: усл. | C43: 1 | E43: 1,500.00 | F43: 0
A44: Наладочные работы стационарного арочного многозонного металлообнаружителя МТД-КА | B44: усл. | C44: 1 | E44: 2,000.00 | F44: 0
A45: Страхование автомобилей ОСАГО | B45: усл. | C45: 2 | D45: 2 ед. * 3195,66 руб. | E45: 5,112.07 | F45: 4782.86
A46: Приобретение зимнего комплекта колес для автомобиля ГАЗ 2705 | E46: 51,800.00 | F46: 0
A47: Запчасти для автомобилей | E47: =4540+4350+4350+4538+4880+4600+2580+4380 -> 34,218.00 | F47: 22030
A48: Затраты на прочие общехозяйственные нужды в т.ч. | E48: =E49+E50+E51+E52+E53+E54+E55+E56+E57+E58+E59+E60+E61+E62+E63+E64+E65+E66+E67+E68+E69+E70+E71+E72+E73+E74+E75+E76+E77+E78+E79+E80+E81+E82+E83+E84+E85+E86+E87+E88+E89+E90+E91 -> 3,415,632.33 | F48: =SUM(F41:F47) -> 63138.72
A49: Камерная обработка (дератизация) мягкого инвентаря | B49: усл. | C49: 1 | D49: 1 * 29726,14 руб. | E49: 29,726.14
A50: Ремонт оргтехники, быт.техники, диагностика | B50: усл. | C50: 3 | E50: =10300+3200+500 -> 14,000.00
A51: Перезаправка картриджей | E51: 1,000.00
A52: Перезарядка огнетушителей | B52: шт. | C52: 46 | E52: 10,000.00
A53: Периодическая поверка СИ | B53: усл. | C53: 2 | E53: =4197.42+29760.67 -> 33,958.09
A54: Демеркуризация ртутьсодержащих ламп | B54: усл. | C54: 1 | D54: 1 * 8974,80 руб. | E54: 8,974.80
A55: Испытание диэлектрических средств защиты | B55: усл. | C55: 1 | E55: 2,670.00
A56: Компенсация стоимости медкомиссии обучающимся | E56: 13,963.00
A57: Питание студентов во время соревнований | B57: усл. | C57: 1 | E57: 5,278.23
A58: Проживание студентам во время соревнований | B58: усл. | C58: 1 | E58: 23,030.00
A59: Проезд студентов к месту соревнований | E59: 14,155.00
A60: Страхование жизни студентов на время проведения соревнований | B60: усл. | E60: =8385 -> 8,385.00
A61: Контроль при помощи ТСО | B61: усл. | E61: 12,384.38
A62: Вознаграждения по договорам ГПХ с начислениями (охрана) | B62: усл. | E62: =3938+11020.65+241383.6+55704.62+16312 -> 328,358.87
A63: Физ.охрана учреждения | B63: усл | C63: 1 | E63: 374,788.80
A64: Сопровождение программ | B64: усл. | D64: "Диплом-стандарт" 1*2530,00 руб. "1С:Предприятие. Учет стипендии" 1*25000,00 руб. "Контур-Экстерн" 1*5320,00 руб. "Контур.ОФД" 1*2400,00 руб. "1С-ЭТП. ЕГАИС" 1*2000 руб. "Госфинансы" 61475 руб. Интернет-сайт mypek.nubex.ru 4800,00+899,00 руб. "1С:Предприятие"73064 руб. "ЭБС" 24490,09 руб. "Электронная подпись 3.0" 4720 руб. | E64: 206,698.09
A65: Подписка на периодические издания | B65: усл. | E65: =1326+56399.4+31249.62 -> 88,975.02
A66: Предрейсовые медосмотры водителя | B66: усл. | C66: 212 | D66: 212 пос. * 100 руб. | E66: 21,200.00
A67: Повышение квалификации | B67: усл. | C67: 7 | E67: =11750+10500+10000+6000+11419+28000+5000 -> 82,669.00
A68: Определение рыночной стоимости автотранспортного средства ГАЗ-31029 | B68: усл. | C68: 1 | D68: 1 * 4500 руб. | E68: 4,500.00
A69: Услуги нотариуса | C69: 2 | E69: 4,900.00
A70: Организация и проведение конференции | B70: усл. | C70: 1 | D70: 1 * 1875 руб. | E70: 1,875.00
A71: Организационные сборы за участие WorldSkills | B71: усл. | C71: 2 | D71: 1 * 42000 руб.; 1 * 29500 руб. | E71: =29500+42000 -> 71,500.00
A72: Организационный взнос за участие в заключительном этапе Всероссийской олимпиады | B72: усл. | C72: 1 | D72: 1 * 15000 руб. | E72: 15,000.00
A73: Медосмотр сотрудников | B73: усл. | C73: 55 | E73: =144500 -> 144,500.00
A74: Проведение исследований, измерений на соответствие сан-эпидемиологическим нормам и правилам | B74: усл. | E74: 33,624.83
A75: Сан-эпид.заключение рациона питания | B75: усл. | C75: 1 | D75: 1 * 6619,46 руб. | E75: 6,619.46
A76: Аттестация по итогам гигиенического обучения | B76: усл. | C76: 1 | E76: 22,645.12
A77: Оплата госпошлины за аккредитацию | B77: усл. | C77: 2 | D77: 1*280000 руб.; 1*3500 руб. | E77: 283,500.00
A78: Приобретение ОС | D78: Жалюзи 17490 руб.; Оборудование для дем.экзамена КИПиА 287053,40 руб.; Средства телефонной связи и бытовой техники 37170 руб.; Сварочное оборудование 143580 руб.; Приобретение спортинвентаря 46600,00 руб.; Термопот для студентов в столовую 3399 руб. Прочие ОС 3019,02 руб. | E78: =5520+11970+287053.4+37170+143580+46600+2248.02+771+3399 -> 538,311.42
A79: Перевязочные средства и медикаменты | E79: 10,321.08
A80: Культмассовые мероприятия | E80: =12201.49+4650+318+1011.42+914.18+484.94 -> 19,580.03
A81: ГСМ на общехозяйственные расходы | E81: 188,185.15
A82: Строительные материалы для оснащения мастерских, подготовка студентов к чемпионатам, ремонтных работ | E82: =49842.93+32638.46+220+45+20109.44+2129.35+1416.2+16949.3-15678.03 -> 107,672.65
A83: Спецодежда для студентов для сварочного цеха; спорт.форма; | E83: =87540.06-1450 -> 86,090.06
A84: СИЗ для сотрудников | E84: 1,450.00
A85: Поставка дневников практики, буклетов, конвертов, журналов | E85: 49,800.00
A86: Картриджы для принтеров | E86: =83540+4942+1999 -> 90,481.00
A87: Канцелярские принадлежности | E87: =109525.99+440 -> 109,965.99
A88: Расходный материал в сварочный цех, мастерские | E88: =153663+2891+26099.71+28596.61+325+430+240+993+1412.5+2670+1415+3845+47470 -> 270,050.82
A89: Прочие МЗ (комплектующие к компьютерам) | E89: =1430+2363+2198+1099+838+510 -> 8,438.00
A90: Вода для обучающихся (питьевой режим) | E90: 62,000.00
A91: Приобретение прочих МЗ | D91: Рамки, печатная продукция и т.д. | E91: =2437.3+1300+670 -> 4,407.30
A92: Налог на имущество | E92: 2,622,785.00
A93: Транспортный налог | E93: 3,161.00
A94: Итого | E94: =E4+E9+E13+E19+E21+E29+E40+E48+E92+E93 -> 53,404,000.00
A96: Директор | D96: Д.В. Шевченко
A97: Главный бухгалтер | D97: О.А. Манаенкова
A98: Исполнитель Манаенкова О.А.
A99: (81532) 74763
